Workbook

Sheet 入库项目分类汇总表
A1: 岳阳县2025年度巩固拓展脱贫攻坚成果和乡村振兴项目库入库项目申报分类汇总表
A2: 单位（盖章） | L2: 单位：万元、个、人
A3: 序号 | B3: 项目类型 | C3: 项目个数 | D3: 资金规模和筹资方式 | G3: 受益对象 | M3: 备注
D4: 项目预算总投资 | E4: 其中 | G4: 受益村（个） | H4: 受益户数（户） | I4: 受益人口数（人） | J4: 其中
E5: 财政资金 | F5: 其他资金 | J5: 受益脱贫村数（个） | K5: 受益脱贫户数及防止返贫监测对象户数（户） | L5: 受益脱贫人口数及防止返贫监测对象人口数（人）
B6: 总 计 | C6: =C7+C17+C23+C28+C27 -> 479 | D6: 26807.5386 | E6: 17521.69 | F6: 9067.364 | G6: 2462 | H6: 136931 | I6: =I7+I17+I23+I28++I27 -> 657021 | J6: =J7+J17+J23+J28+J27 -> 785 | K6: =K7+K17+K23+K28+K27 -> 32296 | L6: =L7+L17+L23+L28+L27 -> 80862
B7: 一、产业发展 | C7: =C8+C9+C10+C11+C12+C13+C14+C15+C16 -> 341 | D7: =SUM(D8:D16) -> 19468.054 | E7: =SUM(E8:E16) -> 11590.69 | F7: 7827.364 | G7: 1616 | H7: 106565 | I7: 403584 | J7: 417 | K7: 16600 | L7: 38762
B8: 1.生产项目 | C8: =COUNTIF(入库项目明细表!$C$6:$C$484,"生产项目") -> 189 | D8: =SUMIF(入库项目明细表!C6:C484,"生产项目",入库项目明细表!N6:N484) -> 7075.134 | E8: =SUMIF(入库项目明细表!C6:C484,"生产项目",入库项目明细表!O6:O484) -> 3512.67 | F8: =SUMIF(入库项目明细表!C6:C484,"生产项目",入库项目明细表!P6:P484) -> 3562.464 | G8: =SUMIF(入库项目明细表!C6:C484,"生产项目",入库项目明细表!Q6:Q484) -> 275 | H8: =SUMIF(入库项目明细表!C6:C484,"生产项目",入库项目明细表!R6:R484) -> 46673 | I8: =SUMIF(入库项目明细表!C6:C484,"生产项目",入库项目明细表!S6:S484) -> 172612 | J8: =SUMIF(入库项目明细表!C6:C484,"生产项目",入库项目明细表!T6:T484) -> 131 | K8: =SUMIF(入库项目明细表!C6:C484,"生产项目",入库项目明细表!U6:U484) -> 7090 | L8: =SUMIF(入库项目明细表!C6:C484,"生产项目",入库项目明细表!V6:V484) -> 21969
B9: 2.加工流通项目 | C9: =COUNTIF(入库项目明细表!$C$6:$C$484,"加工流通项目") -> 12 | D9: =SUMIF(入库项目明细表!C6:C484,"加工流通项目",入库项目明细表!N6:N484) -> 1657.05 | E9: =SUMIF(入库项目明细表!C6:C484,"加工流通项目",入库项目明细表!O6:O484) -> 482.05 | F9: =SUMIF(入库项目明细表!C6:C484,"加工流通项目",入库项目明细表!P6:P484) -> 1175 | G9: =SUMIF(入库项目明细表!C6:C484,"加工流通项目",入库项目明细表!Q6:Q484) -> 11 | H9: =SUMIF(入库项目明细表!C6:C484,"加工流通项目",入库项目明细表!R6:R484) -> 4194 | I9: =SUMIF(入库项目明细表!C6:C484,"加工流通项目",入库项目明细表!S6:S484) -> 19185 | J9: =SUMIF(入库项目明细表!C6:C484,"加工流通项目",入库项目明细表!T6:T484) -> 10 | K9: =SUMIF(入库项目明细表!C6:C484,"加工流通项目",入库项目明细表!U6:U484) -> 478 | L9: =SUMIF(入库项目明细表!C6:C484,"加工流通项目",入库项目明细表!V6:V484) -> 1363
B10: 3.配套设施项目 | C10: =COUNTIF(入库项目明细表!$C$6:$C$484,"配套基础设施")+COUNTIF(入库项目明细表!$C$6:$C$484,"配套基础设施项目") -> 127 | D10: =SUMIF(入库项目明细表!C6:C484,"配套基础设施",入库项目明细表!N6:N484)+SUMIF(入库项目明细表!C6:C484,"配套基础设施项目",入库项目明细表!N6:N484) -> 9162.2 | E10: =SUMIF(入库项目明细表!C6:C484,"配套基础设施",入库项目明细表!O6:O484)+SUMIF(入库项目明细表!C6:C484,"配套基础设施项目",入库项目明细表!O6:O484) -> 6114.3 | F10: =SUMIF(入库项目明细表!C6:C484,"配套基础设施",入库项目明细表!P6:P484)+SUMIF(入库项目明细表!C6:C484,"配套基础设施项目",入库项目明细表!P6:P484) -> 3047.9 | G10: =SUMIF(入库项目明细表!C6:C484,"配套基础设施",入库项目明细表!Q6:Q484)+SUMIF(入库项目明细表!C6:C484,"配套基础设施项目",入库项目明细表!Q6:Q484) -> 1030 | H10: =SUMIF(入库项目明细表!C6:C484,"配套基础设施",入库项目明细表!R6:R484)+SUMIF(入库项目明细表!C6:C484,"配套基础设施项目",入库项目明细表!R6:R484) -> 50106 | I10: =SUMIF(入库项目明细表!C6:C484,"配套基础设施",入库项目明细表!S6:S484)+SUMIF(入库项目明细表!C6:C484,"配套基础设施项目",入库项目明细表!S6:S484) -> 204042 | J10: =SUMIF(入库项目明细表!C6:C484,"配套基础设施",入库项目明细表!T6:T484)+SUMIF(入库项目明细表!C6:C484,"配套基础设施项目",入库项目明细表!T6:T484) -> 134 | K10: =SUMIF(入库项目明细表!C6:C484,"配套基础设施",入库项目明细表!U6:U484)+SUMIF(入库项目明细表!C6:C484,"配套基础设施项目",入库项目明细表!U6:U484) -> 4189 | L10: =SUMIF(入库项目明细表!C6:C484,"配套基础设施",入库项目明细表!V6:V484)+SUMIF(入库项目明细表!C6:C484,"配套基础设施项目",入库项目明细表!V6:V484) -> 10392
B11: 4.产业服务支撑项目 | C11: =COUNTIF(入库项目明细表!$C$6:$C$484,"产业服务支撑项目") -> 2 | D11: =SUMIF(入库项目明细表!C6:C484,"产业服务支撑项目",入库项目明细表!N6:N484) -> 53.24 | E11: =SUMIF(入库项目明细表!C6:C484,"产业服务支撑项目",入库项目明细表!O6:O484) -> 53.24 | F11: =SUMIF(入库项目明细表!C6:C484,"产业服务支撑项目",入库项目明细表!P6:P484) -> 0 | G11: =SUMIF(入库项目明细表!C6:C484,"产业服务支撑项目",入库项目明细表!Q6:Q484) -> 16 | H11: =SUMIF(入库项目明细表!C6:C484,"产业服务支撑项目",入库项目明细表!R6:R484) -> 356 | I11: =SUMIF(入库项目明细表!C6:C484,"产业服务支撑项目",入库项目明细表!S6:S484) -> 2004 | J11: =SUMIF(入库项目明细表!C6:C484,"产业服务支撑项目",入库项目明细表!T6:T484) -> 15 | K11: =SUMIF(入库项目明细表!C6:C484,"产业服务支撑项目",入库项目明细表!U6:U484) -> 99 | L11: =SUMIF(入库项目明细表!C6:C484,"产业服务支撑项目",入库项目明细表!V6:V484) -> 223
B12: 5.金融保险配套项目 | C12: =COUNTIF(入库项目明细表!$C$6:$C$484,"金融保险配套项目") -> 2 | D12: =SUMIF(入库项目明细表!C6:C484,"金融保险配套项目",入库项目明细表!N6:N484) -> 1010.1 | E12: =SUMIF(入库项目明细表!C6:C484,"金融保险配套项目",入库项目明细表!O6:O484) -> 1010.1 | F12: =SUMIF(入库项目明细表!C6:C484,"金融保险配套项目",入库项目明细表!P6:P484) -> 0 | G12: =SUMIF(入库项目明细表!C6:C484,"金融保险配套项目",入库项目明细表!Q6:Q484) -> 192 | H12: =SUMIF(入库项目明细表!C6:C484,"金融保险配套项目",入库项目明细表!R6:R484) -> 950 | I12: =SUMIF(入库项目明细表!C6:C484,"金融保险配套项目",入库项目明细表!S6:S484) -> 1000 | J12: =SUMIF(入库项目明细表!C6:C484,"金融保险配套项目",入库项目明细表!T6:T484) -> 46 | K12: =SUMIF(入库项目明细表!C6:C484,"金融保险配套项目",入库项目明细表!U6:U484) -> 950 | L12: =SUMIF(入库项目明细表!C6:C484,"金融保险配套项目",入库项目明细表!V6:V484) -> 1000
B13: 6、新型农村集体经济发展项目 | C13: =COUNTIF(入库项目明细表!$C$6:$C$484,"新型农村集体经济发展项目") -> 4 | D13: =SUMIF(入库项目明细表!C6:C484,"新型农村集体经济发展项目",入库项目明细表!N6:N484) -> 180 | E13: =SUMIF(入库项目明细表!C6:C484,"新型农村集体经济发展项目",入库项目明细表!O6:O484) -> 113 | F13: =SUMIF(入库项目明细表!C6:C484,"新型农村集体经济发展项目",入库项目明细表!P6:P484) -> 17 | G13: =SUMIF(入库项目明细表!C6:C484,"新型农村集体经济发展项目",入库项目明细表!Q6:Q484) -> 4 | H13: =SUMIF(入库项目明细表!C6:C484,"新型农村集体经济发展项目",入库项目明细表!R6:R484) -> 232 | I13: =SUMIF(入库项目明细表!C6:C484,"新型农村集体经济发展项目",入库项目明细表!S6:S484) -> 413 | J13: =SUMIF(入库项目明细表!C6:C484,"新型农村集体经济发展项目",入库项目明细表!T6:T484) -> 1 | K13: =SUMIF(入库项目明细表!C6:C484,"新型农村集体经济发展项目",入库项目明细表!U6:U484) -> 147 | L13: =SUMIF(入库项目明细表!C6:C484,"新型农村集体经济发展项目",入库项目明细表!V6:V484) -> 407
B14: 7、直接帮扶 | C14: =COUNTIF(入库项目明细表!$C$6:$C$484,"直接帮扶") -> 1 | D14: =SUMIF(入库项目明细表!C6:C484,"直接帮扶",入库项目明细表!N6:N484) -> 150 | E14: =SUMIF(入库项目明细表!C6:C484,"直接帮扶",入库项目明细表!O6:O484) -> 150 | F14: =SUMIF(入库项目明细表!C6:C484,"直接帮扶",入库项目明细表!P6:P484) -> 0 | G14: =SUMIF(入库项目明细表!C6:C484,"直接帮扶",入库项目明细表!Q6:Q484) -> 60 | H14: =SUMIF(入库项目明细表!C6:C484,"直接帮扶",入库项目明细表!R6:R484) -> 3000 | I14: =SUMIF(入库项目明细表!C6:C484,"直接帮扶",入库项目明细表!S6:S484) -> 0 | J14: =SUMIF(入库项目明细表!C6:C484,"直接帮扶",入库项目明细表!T6:T484) -> 60 | K14: =SUMIF(入库项目明细表!C6:C484,"直接帮扶",入库项目明细表!U6:U484) -> 3000 | L14: =SUMIF(入库项目明细表!C6:C484,"直接帮扶",入库项目明细表!V6:V484) -> 0
B15: 8、产业奖补 | C15: =COUNTIF(入库项目明细表!$C$6:$C$484,"产业奖补") -> 2 | D15: =SUMIF(入库项目明细表!$C$6:$C$484,"产业奖补",入库项目明细表!$N$6:$N$484) -> 131.33 | E15: =SUMIF(入库项目明细表!$C$6:$C$484,"产业奖补",入库项目明细表!$O$6:$O$484) -> 131.33 | F15: =SUMIF(入库项目明细表!C6:C484,"产业奖补",入库项目明细表!P6:P484) -> 0 | G15: =SUMIF(入库项目明细表!$C$6:$C$484,"产业奖补",入库项目明细表!$Q6:$Q$484) -> 26 | H15: =SUMIF(入库项目明细表!C6:C484,"产业奖补",入库项目明细表!R6:R484) -> 925 | I15: =SUMIF(入库项目明细表!C6:C484,"产业奖补",入库项目明细表!S6:S484) -> 3288 | J15: =SUMIF(入库项目明细表!C6:C484,"产业奖补",入库项目明细表!T6:T484) -> 18 | K15: =SUMIF(入库项目明细表!C6:C484,"产业奖补",入库项目明细表!U6:U484) -> 607 | L15: =SUMIF(入库项目明细表!C6:C484,"产业奖补",入库项目明细表!V6:V484) -> 3288
B16: 9、光伏电站建设 | C16: =COUNTIF(入库项目明细表!$C$6:$C$484,"光伏电站建设") -> 2 | D16: =SUMIF(入库项目明细表!$C$6:$C$484,"光伏电站建设",入库项目明细表!$N$6:$N$484) -> 49 | E16: =SUMIF(入库项目明细表!$C$6:$C$484,"光伏电站建设",入库项目明细表!$O$6:$O$484) -> 24 | F16: =SUMIF(入库项目明细表!C6:C484,"光伏电站建设",入库项目明细表!P6:P484) -> 25 | G16: =SUMIF(入库项目明细表!$C$6:$C$484,"光伏电站建设",入库项目明细表!$Q6:$Q$484) -> 2 | H16: =SUMIF(入库项目明细表!C6:C484,"光伏电站建设",入库项目明细表!R6:R484) -> 129 | I16: =SUMIF(入库项目明细表!C6:C484,"光伏电站建设",入库项目明细表!S6:S484) -> 1040 | J16: =SUMIF(入库项目明细表!C6:C484,"光伏电站建设",入库项目明细表!T6:T484) -> 2 | K16: =SUMIF(入库项目明细表!C6:C484,"光伏电站建设",入库项目明细表!U6:U484) -> 40 | L16: =SUMIF(入库项目明细表!C6:C484,"光伏电站建设",入库项目明细表!V6:V484) -> 120
B17: 二、就业项目 | C17: =C18+C19+C20+C22 -> 4 | D17: =D18+D19+D20+D22 -> 1108 | E17: 1098 | F17: 10 | G17: 385 | H17: 848 | I17: 3702 | J17: 104 | K17: 1833 | L17: 3632
B18: 1.务工补助 | C18: =COUNTIF(入库项目明细表!$C$6:$C$484,"务工补助") -> 1 | D18: =SUMIF(入库项目明细表!$C$6:$C$484,"务工补助",入库项目明细表!$N$6:$N$484) -> 218 | E18: =SUMIF(入库项目明细表!$C$6:$C$484,"务工补助",入库项目明细表!$O$6:$O$484) -> 218 | F18: =SUMIF(入库项目明细表!$C$6:$C$484,"务工补助",入库项目明细表!$P$6:$P$484) -> 0 | G18: =SUMIF(入库项目明细表!$C$6:$C$484,"务工补助",入库项目明细表!$Q6:$Q$484) -> 192 | H18: =SUMIF(入库项目明细表!$C$6:$C$484,"务工补助",入库项目明细表!$R$6:$R$484) -> 240 | I18: =SUMIF(入库项目明细表!$C$6:$C$484,"务工补助",入库项目明细表!$S$6:$S$484) -> 2500 | J18: =SUMIF(入库项目明细表!$C$6:$C$484,"务工补助",入库项目明细表!$T$6:$T$484) -> 46 | K18: =SUMIF(入库项目明细表!$C$6:$C$484,"务工补助",入库项目明细表!$U$6:$U$484) -> 1250 | L18: =SUMIF(入库项目明细表!$C$6:$C$484,"务工补助",入库项目明细表!$V$6:$V$484) -> 2500
B19: 2.就业培训 | C19: =COUNTIF(入库项目明细表!$C$6:$C$484,"就业") -> 2 | D19: =SUMIF(入库项目明细表!$C$6:$C$484,"就业",入库项目明细表!$N$6:$N$484) -> 80 | E19: =SUMIF(入库项目明细表!$C$6:$C$484,"就业",入库项目明细表!$O$6:$O$484) -> 70 | F19: =SUMIF(入库项目明细表!$C$6:$C$484,"就业",入库项目明细表!$P$6:$P$484) -> 10 | G19: =SUMIF(入库项目明细表!$C$6:$C$484,"就业",入库项目明细表!$Q7:$Q$484) -> 193 | H19: =SUMIF(入库项目明细表!$C$6:$C$484,"就业",入库项目明细表!$R$6:$R$484) -> 158 | I19: =SUMIF(入库项目明细表!$C$6:$C$484,"就业",入库项目明细表!$S$6:$S$484) -> 302 | J19: =SUMIF(入库项目明细表!$C$6:$C$484,"就业",入库项目明细表!$T$6:$T$484) -> 12 | K19: =SUMIF(入库项目明细表!$C$6:$C$484,"就业",入库项目明细表!$U$6:$U$484) -> 133 | L19: =SUMIF(入库项目明细表!$C$6:$C$484,"就业",入库项目明细表!$V$6:$V$484) -> 232
B20: 3.创业 | C20: =COUNTIF(入库项目明细表!$C$6:$C$484,"创业") -> 0 | D20: =SUMIF(入库项目明细表!$C$6:$C$484,"创业",入库项目明细表!$N$6:$N$484) -> 0 | E20: =SUMIF(入库项目明细表!$C$6:$C$484,"创业",入库项目明细表!$O$6:$O$484) -> 0 | F20: =SUMIF(入库项目明细表!$C$6:$C$484,"创业",入库项目明细表!$P$6:$P$484) -> 0 | G20: =SUMIF(入库项目明细表!$C$6:$C$484,"创业",入库项目明细表!$Q8:$Q$484) -> 0 | H20: =SUMIF(入库项目明细表!$C$6:$C$484,"创业",入库项目明细表!$R$6:$R$484) -> 0 | I20: =SUMIF(入库项目明细表!$C$6:$C$484,"创业",入库项目明细表!$S$6:$S$484) -> 0 | J20: =SUMIF(入库项目明细表!$C$6:$C$484,"创业",入库项目明细表!$T$6:$T$484) -> 0 | K20: =SUMIF(入库项目明细表!$C$6:$C$484,"创业",入库项目明细表!$U$6:$U$484) -> 0 | L20: =SUMIF(入库项目明细表!$C$6:$C$484,"创业",入库项目明细表!$V$6:$V$484) -> 0
B21: 4.乡村工匠 | C21: =COUNTIF(入库项目明细表!$C$6:$C$484,"乡村工匠") -> 0 | D21: =SUMIF(入库项目明细表!$C$6:$C$484,"乡村工匠",入库项目明细表!$N$6:$N$484) -> 0 | E21: =SUMIF(入库项目明细表!$C$6:$C$484,"乡村工匠",入库项目明细表!$O$6:$O$484) -> 0 | F21: =SUMIF(入库项目明细表!$C$6:$C$484,"乡村工匠",入库项目明细表!$P$6:$P$484) -> 0 | G21: =SUMIF(入库项目明细表!$C$6:$C$484,"乡村工匠",入库项目明细表!$Q9:$Q$484) -> 0 | H21: =SUMIF(入库项目明细表!$C$6:$C$484,"乡村工匠",入库项目明细表!$R$6:$R$484) -> 0 | I21: =SUMIF(入库项目明细表!$C$6:$C$484,"乡村工匠",入库项目明细表!$S$6:$S$484) -> 0 | J21: =SUMIF(入库项目明细表!$C$6:$C$484,"乡村工匠",入库项目明细表!$T$6:$T$484) -> 0 | K21: =SUMIF(入库项目明细表!$C$6:$C$484,"乡村工匠",入库项目明细表!$U$6:$U$484) -> 0 | L21: =SUMIF(入库项目明细表!$C$6:$C$484,"乡村工匠",入库项目明细表!$V$6:$V$484) -> 0
B22: 5.公益性岗位 | C22: =COUNTIF(入库项目明细表!$C$6:$C$484,"公益性岗位") -> 1 | D22: =SUMIF(入库项目明细表!$C$6:$C$484,"公益性岗位",入库项目明细表!$N$6:$N$484) -> 810 | E22: =SUMIF(入库项目明细表!$C$6:$C$484,"公益性岗位",入库项目明细表!$O$6:$O$484) -> 810 | F22: =SUMIF(入库项目明细表!$C$6:$C$484,"公益性岗位",入库项目明细表!$P$6:$P$484) -> 0 | G22: =SUMIF(入库项目明细表!$C$6:$C$484,"公益性岗位",入库项目明细表!$Q10:$Q$484) -> 0 | H22: =SUMIF(入库项目明细表!$C$6:$C$484,"公益性岗位",入库项目明细表!$R$6:$R$484) -> 450 | I22: =SUMIF(入库项目明细表!$C$6:$C$484,"公益性岗位",入库项目明细表!$S$6:$S$484) -> 900 | J22: =SUMIF(入库项目明细表!$C$6:$C$484,"公益性岗位",入库项目明细表!$T$6:$T$484) -> 46 | K22: =SUMIF(入库项目明细表!$C$6:$C$484,"公益性岗位",入库项目明细表!$U$6:$U$484) -> 450 | L22: =SUMIF(入库项目明细表!$C$6:$C$484,"公益性岗位",入库项目明细表!$V$6:$V$484) -> 900
B23: 三、乡村建设行动 | C23: =C24+C25+C26 -> 132 | D23: =D24+D25+D26 -> 5941.4846 | E23: 4543 | F23: 1230 | G23: 269 | H23: 27995 | I23: 248090 | J23: 214 | K23: 12340 | L23: 36823
B24: 1.农村基础设施 | C24: =COUNTIF(入库项目明细表!$C$6:$C$484,"农村基础设施")+COUNTIF(入库项目明细表!$C$6:$C$484,"农村基础设施（含产业配套基础设施）") -> 129 | D24: =SUMIF(入库项目明细表!$C$6:$C$484,"农村基础设施",入库项目明细表!$N$6:$N$484)+SUMIF(入库项目明细表!$C$6:$C$484,"农村基础设施（含产业配套基础设施）",入库项目明细表!$N$6:$N$484) -> 3639.4846 | E24: =SUMIF(入库项目明细表!$C$6:$C$484,"农村基础设施",入库项目明细表!$O$6:$O$484)+SUMIF(入库项目明细表!$C$6:$C$484,"农村基础设施（含产业配套基础设施）",入库项目明细表!$O$6:$O$484) -> 2247 | F24: 1224 | G24: =SUMIF(入库项目明细表!$C$6:$C$484,"农村基础设施",入库项目明细表!$Q10:$Q$484)+SUMIF(入库项目明细表!$C$6:$C$484,"农村基础设施（含产业配套基础设施）",入库项目明细表!$Q10:$Q$484) -> 169 | H24: =SUMIF(入库项目明细表!$C$6:$C$484,"农村基础设施",入库项目明细表!$R$6:$R$484)+SUMIF(入库项目明细表!$C$6:$C$484,"农村基础设施（含产业配套基础设施）",入库项目明细表!$R$6:$R$484) -> 24917 | I24: =SUMIF(入库项目明细表!$C$6:$C$484,"农村基础设施",入库项目明细表!$S$6:$S$484)+SUMIF(入库项目明细表!$C$6:$C$484,"农村基础设施（含产业配套基础设施）",入库项目明细表!$S$6:$S$484) -> 100025 | J24: =SUMIF(入库项目明细表!$C$6:$C$484,"农村基础设施",入库项目明细表!$T$6:$T$484)+SUMIF(入库项目明细表!$C$6:$C$484,"农村基础设施（含产业配套基础设施）",入库项目明细表!$T$6:$T$484) -> 168 | K24: =SUMIF(入库项目明细表!$C$6:$C$484,"农村基础设施",入库项目明细表!$U$6:$U$484)+SUMIF(入库项目明细表!$C$6:$C$484,"农村基础设施（含产业配套基础设施）",入库项目明细表!$U$6:$U$484) -> 2335 | L24: =SUMIF(入库项目明细表!$C$6:$C$484,"农村基础设施",入库项目明细表!$V$6:$V$484)+SUMIF(入库项目明细表!$C$6:$C$484,"农村基础设施（含产业配套基础设施）",入库项目明细表!$V$6:$V$484) -> 8116
B25: 2.人居环境整治 | C25: =COUNTIF(入库项目明细表!$C$6:$C$484,"农村人居环境整治") -> 2 | D25: =SUMIF(入库项目明细表!$C$6:$C$484,"农村人居环境整治",入库项目明细表!$N$6:$N$484) -> 2297 | E25: =SUMIF(入库项目明细表!$C$6:$C$484,"农村人居环境整治",入库项目明细表!$O$6:$O$484) -> 2291 | F25: =SUMIF(入库项目明细表!$C$6:$C$484,"农村人居环境整治",入库项目明细表!$P$6:$P$484) -> 6 | G25: =SUMIF(入库项目明细表!$C$6:$C$484,"农村人居环境整治",入库项目明细表!$Q10:$Q$484) -> 100 | H25: =SUMIF(入库项目明细表!$C$6:$C$484,"农村人居环境整治",入库项目明细表!$R$6:$R$484) -> 3078 | I25: =SUMIF(入库项目明细表!$C$6:$C$484,"农村人居环境整治",入库项目明细表!$S$6:$S$484) -> 148000 | J25: =SUMIF(入库项目明细表!$C$6:$C$484,"农村人居环境整治",入库项目明细表!$T$6:$T$484) -> 46 | K25: =SUMIF(入库项目明细表!$C$6:$C$484,"农村人居环境整治",入库项目明细表!$U$6:$U$484) -> 10005 | L25: =SUMIF(入库项目明细表!$C$6:$C$484,"农村人居环境整治",入库项目明细表!$V$6:$V$484) -> 28702
B26: 3.农村公共服务 | C26: =COUNTIF(入库项目明细表!$C$6:$C$484,"农村公共服务") -> 1 | D26: =SUMIF(入库项目明细表!$C$6:$C$484,"农村公共服务",入库项目明细表!$N$6:$N$484) -> 5 | E26: =SUMIF(入库项目明细表!$C$6:$C$484,"农村公共服务",入库项目明细表!$O$6:$O$484) -> 5 | F26: =SUMIF(入库项目明细表!$C$6:$C$484,"农村公共服务",入库项目明细表!$P$6:$P$484) -> 0 | G26: =SUMIF(入库项目明细表!$C$6:$C$484,"农村公共服务",入库项目明细表!$Q11:$Q$484) -> 0 | H26: =SUMIF(入库项目明细表!$C$6:$C$484,"农村公共服务",入库项目明细表!$R$6:$R$484) -> 0 | I26: =SUMIF(入库项目明细表!$C$6:$C$484,"农村公共服务",入库项目明细表!$S$6:$S$484) -> 65 | J26: =SUMIF(入库项目明细表!$C$6:$C$484,"农村公共服务",入库项目明细表!$T$6:$T$484) -> 0 | K26: =SUMIF(入库项目明细表!$C$6:$C$484,"农村公共服务",入库项目明细表!$U$6:$U$484) -> 0 | L26: =SUMIF(入库项目明细表!$C$6:$C$484,"农村公共服务",入库项目明细表!$V$6:$V$484) -> 5
B27: 四、易地搬迁后扶 | C27: =COUNTIF(入库项目明细表!$C$6:$C$484,"易地搬迁后扶") -> 1 | D27: =SUMIF(入库项目明细表!$C$6:$C$484,"易地搬迁后扶",入库项目明细表!$N$6:$N$484) -> 50 | E27: =SUMIF(入库项目明细表!$C$6:$C$484,"易地搬迁后扶",入库项目明细表!$O$6:$O$484) -> 50 | F27: =SUMIF(入库项目明细表!$C$6:$C$484,"易地搬迁后扶",入库项目明细表!$P$6:$P$484) -> 0 | G27: =SUMIF(入库项目明细表!$C$6:$C$484,"易地搬迁后扶",入库项目明细表!$Q12:$Q$484) -> 0 | H27: =SUMIF(入库项目明细表!$C$6:$C$484,"易地搬迁后扶",入库项目明细表!$R$6:$R$484) -> 23 | I27: =SUMIF(入库项目明细表!$C$6:$C$484,"易地搬迁后扶",入库项目明细表!$S$6:$S$484) -> 45 | J27: =SUMIF(入库项目明细表!$C$6:$C$484,"易地搬迁后扶",入库项目明细表!$T$6:$T$484) -> 4 | K27: =SUMIF(入库项目明细表!$C$6:$C$484,"易地搬迁后扶",入库项目明细表!$U$6:$U$484) -> 23 | L27: =SUMIF(入库项目明细表!$C$6:$C$484,"易地搬迁后扶",入库项目明细表!$V$6:$V$484) -> 45
B28: 五、巩固三保障成果 | C28: =C30 -> 1 | D28: =D30 -> 240 | E28: 240 | F28: 0 | G28: 192 | H28: 1500 | I28: 1600 | J28: 46 | K28: 1500 | L28: 1600
B29: 1.住房
B30: 2.教育 | C30: 1 | D30: 240 | E30: 240 | G30: 192 | H30: 1500 | I30: 1600 | J30: 46 | K30: 1500 | L30: 1600
B31: 3.健康
B32: 4.综合保障
B33: 六、乡村治理和精神文明建设
B34: 1.乡村治理
B35: 2.农村精神文明建设
B36: 七、项目管理费
B37: 八、其他
B38: 1.少数民族特色村寨建设项
B39: 2.困难群众饮用低氟茶
B40: ……

Sheet 入库项目明细表
A1: 岳阳县2025年度巩固拓展脱贫攻坚成果和乡村振兴项目库入库项目明细表
A2: 单位： (盖章 )
A3: 序号 | B3: 项目类别 | E3: 乡 | F3: 村 | G3: 项目名称 | H3: 建设性质 | I3: 实施地点 | J3: 时间进度 | L3: 责任 单位 | M3: 建设内容及规模 | N3: 资金规模和筹资方式 | Q3: 受益对象 | W3: 绩效目标 | X3: 联农带农机制 | Y3: 备注
B4: 项目类型 | C4: 二级项目类型 | D4: 项目子类型 | J4: 计划开工时间 | K4: 计划完工时间 | N4: 项目预算总投资( 万 元 ) | O4: 其中 | Q4: 受益村数(个) | R4: 受益户数(户 ) | S4: 受益人口数 (人) | T4: 其中
O5: 财政资金 ( 万 元 ) | P5: 其他资金 ( 万 元 ) | T5: 受益脱贫村数(个) | U5: 受益脱贫户数及防 止返贫监 测对象户 数 (户 ) | V5: 受益脱贫人口数及防止返贫监测对象人口数
A6: 1 | B6: 产业发展 | C6: 生产项目 | D6: 养殖业基地 | E6: 柏祥镇 | F6: 中村村 | G6: 中村村星农态智能科技 | H6: 改建 | I6: 中村村 | J6: 2025-01-01 | K6: 2025-12-01 | L6: 中村村 | M6: 家禽养殖设备自动化 | N6: 40 | O6: 16 | P6: =N6-O6 -> 24 | Q6: 1 | R6: 155 | S6: 542 | W6: 帮助脱贫户、监测户、及周边群众增产增收。 | X6: 扩大生产规模，保障脱贫户、监测户稳定增收.
A7: 2 | B7: 产业发展 | C7: 配套基础设施项目 | D7: 小型农田水利设施建设 | E7: 柏祥镇 | F7: 十步桥村 | G7: 十步桥村松岭片咀上组门前大塘清淤护砌硬化 | H7: 改建 | I7: 十步桥村 | J7: 2025-01-01 | K7: 2025-12-01 | L7: 十步桥村 | M7: 门前大塘清淤护砌硬化 | N7: 20 | O7: 15 | P7: =N7-O7 -> 5 | Q7: 1 | R7: 87 | S7: 369 | W7: 改善水利条件，方便群众生产、水利灌溉促进发展农业生产增收。 | X7: 群众筹资筹劳参与水利基础设施建设，保障脱贫户增收稳定。
A8: 3 | B8: 产业发展 | C8: 生产项目 | D8: 种植业基地 | E8: 柏祥镇 | F8: 桑园村 | G8: 桑园村桑树种植基地 | H8: 新建 | I8: 桑园村 | J8: 2025-01-01 | K8: 2025-12-01 | L8: 桑园村 | M8: 桑园村四知片张家组，该项目总面积100亩土地复耕，种植桑树苗共计8000根。 | N8: 15 | O8: 10 | P8: =N8-O8 -> 5 | Q8: 1 | R8: 180 | S8: 716 | T8: 1 | U8: 30 | V8: 136 | W8: 带动本镇脱贫户及一般农户发展产业，增加农户收入，促进乡村振兴 | X8: 带动本镇脱贫户及一般农户发展产业，增加农户收入，促进乡村振兴
A9: 4 | B9: 产业发展 | C9: 配套基础设施项目 | D9: 小型农田水利设施建设 | E9: 柏祥镇 | F9: 桑园村 | G9: 桑园村门冲水库至胡万水库水涵连通整改 | H9: 改建 | I9: 桑园村 | J9: 2025-01-01 | K9: 2025-12-01 | L9: 桑园村 | M9: 该项目600米深挖水沟安装30涵管深埋。 | N9: 20 | O9: 15 | P9: =N9-O9 -> 5 | Q9: 1 | R9: 450 | S9: 1700 | T9: 1 | U9: 15 | V9: 56 | W9: 改善水利条件，方便群众生产、水利灌溉促进发展农业生产增收。 | X9: 群众筹资筹劳参与水利基础设施建设，保障脱贫户增收稳定。
A10: 5 | B10: 产业发展 | C10: 配套基础设施项目 | D10: 小型农田水利设施建设 | E10: 柏祥镇 | F10: 临港村 | G10: 临港村光明片周家组锅底山塘维修项目工程 | H10: 改建 | I10: 临港村 | J10: 2025-01-01 | K10: 2025-12-01 | L10: 临港村 | M10: 1、锅底山塘面积约5.6亩，清理山塘内0.8m深的淤泥约2983m³，并清运到2公里外的对前面山上。2、山塘塘提长38m高2.5m宽3m做好塘提的护坡。3、建设使用踏步。4、山塘排水底口更换。 | N10: 12 | O10: 10 | P10: =N10-O10 -> 2 | Q10: 1 | R10: 24 | S10: 92 | W10: 改善水利条件，方便群众生产、水利灌溉促进发展农业生产增收。 | X10: 群众筹资筹劳参与水利基础设施建设，保障脱贫户增收稳定。
A11: 6 | B11: 产业发展 | C11: 配套基础设施项目 | D11: 小型农田水利设施建设 | E11: 柏祥镇 | F11: 临港村 | G11: 临港村光明片荷花组横塘山塘维修项目工程 | H11: 改建 | I11: 临港村 | J11: 2025-01-01 | K11: 2025-12-01 | L11: 临港村 | M11: 1、横塘山塘面积约16.7亩，清理山塘内0.8m深的淤泥约8897m³，并清运到2公里外的山上。2、山塘塘提长65m高2.5m宽3m做好塘提的护坡。3、建设使用踏步。4、山塘排水底口更换。 | N11: 18.8 | O11: 15 | P11: 3.8 | Q11: 1 | R11: 42 | S11: 166 | W11: 改善水利条件，方便群众生产、水利灌溉促进发展农业生产增收。 | X11: 群众筹资筹劳参与水利基础设施建设，保障脱贫户增收稳定。
A12: 7 | B12: 产业发展 | C12: 配套基础设施项目 | D12: 小型农田水利设施建设 | E12: 柏祥镇 | F12: 刘民居委会 | G12: 刘民居委会门口大塘清淤护砌硬化 | H12: 改建 | I12: 刘民居委会 | J12: 2025-01-01 | K12: 2025-12-01 | L12: 刘民居委会 | M12: 门口大塘清淤护砌硬化 | N12: 15 | O12: 12 | P12: 3 | Q12: 1 | R12: 45 | S12: 172 | W12: 改善水利条件，方便群众生产、水利灌溉促进发展农业生产增收。 | X12: 群众筹资筹劳参与水利基础设施建设，保障脱贫户增收稳定。
A13: 8 | B13: 产业发展 | C13: 配套基础设施项目 | D13: 小型农田水利设施建设 | E13: 柏祥镇 | F13: 伏太村 | G13: 伏太村安利大塘清淤 | H13: 改建 | I13: 伏太村 | J13: 2025-01-01 | K13: 2025-12-01 | L13: 伏太村 | M13: 伏太片旁上组安利大塘清淤 | N13: 10 | O13: 8 | P13: 2 | Q13: 1 | R13: 56 | S13: 196 | W13: 有利春耕生产、改善环境，有效提高农业生产，激活当地经济发展 | X13: 该项目建设完成后可以有效的改善储水蓄水灌溉，让周边100余亩水田可以正常灌溉。
A14: 9 | B14: 产业发展 | C14: 配套基础设施项目 | D14: 小型农田水利设施建设 | E14: 柏祥镇 | F14: 柏祥村 | G14: 柏祥村黄升组中间塘清污加固护砌 | H14: 改建 | I14: 柏祥村 | J14: 2025-01-01 | K14: 2025-12-01 | L14: 柏祥村 | M14: 黄升组中间塘清污加固护砌 | N14: 24 | O14: 20 | P14: 4 | Q14: 1 | R14: 87 | S14: 315 | W14: 改善水利条件，方便群众生产、水利灌溉促进发展农业生产增收。 | X14: 群众筹资筹劳参与水利基础设施建设，保障脱贫户增收稳定。
A15: 10 | B15: 产业发展 | C15: 配套基础设施项目 | D15: 小型农田水利设施建设 | E15: 柏祥镇 | F15: 柏祥村 | G15: 柏祥村大塘组门口塘清污加固硬化 | H15: 改建 | I15: 柏祥村 | J15: 2025-01-01 | K15: 2025-12-01 | L15: 柏祥村 | M15: 大塘组门口塘清污加固硬化 | N15: 18 | O15: 15 | P15: 3 | Q15: 1 | R15: 87 | S15: 315 | W15: 改善水利条件，方便群众生产、水利灌溉促进发展农业生产增收。 | X15: 群众筹资筹劳参与水利基础设施建设，保障脱贫户增收稳定。
A16: 11 | B16: 产业发展 | C16: 配套基础设施项目 | D16: 小型农田水利设施建设 | E16: 柏祥镇 | F16: 七一村 | G16: 七一村文付片白水塘山塘维修 | H16: 改建 | I16: 七一村 | J16: 2025-01-01 | K16: 2025-12-01 | L16: 七一村 | M16: 七一村文付片白水塘清淤及硬化 | N16: 15 | O16: 5 | P16: 10 | Q16: 1 | R16: 68 | S16: 236 | W16: 改善水利条件，方便群众生产、水利灌溉促进发展农业生产增收。 | X16: 群众筹资筹劳参与水利基础设施建设，保障脱贫户增收稳定。
A17: 12 | B17: 产业发展 | C17: 生产项目 | D17: 养殖业基地 | E17: 柏祥镇 | F17: 十步桥村 | G17: 十步桥村蚯蚓养殖项目(发展新型农村集体经济) | H17: 新建 | I17: 十步桥村 | J17: 2025-01-01 | K17: 2025-12-01 | L17: 十步桥村 | M17: 结合“蚯蚓+八月瓜”套养，采用“林下经济”模 式，在果树下养殖蚯蚓。拟与力农等其他公司深 度合作、村委入股经营，项目12亩，总投资预计 达50万元，涵盖土地流转、平整、技术研发、加 工设施建设等。或采用“集体经济合作社+农户”模式，农户通过土地入股或参与养殖获得分成。 每年经营性收入10万元以上 | N17: 80 | O17: 50 | P17: 30 | Q17: 1 | R17: 85 | S17: 312 | W17: 每年经营性收入10万元以上 | X17: 农户通过土地入股或参与养殖获得分成
A18: 13 | B18: 产业发展 | C18: 配套基础设施项目 | D18: 小型农田水利设施建设 | E18: 柏祥镇 | F18: 柏祥村 | G18: 柏祥村赵李片恰水塘清污加固硬化工程 | H18: 改建 | I18: 柏祥村 | J18: 2025-08-01 | K18: 2025-12-01 | L18: 柏祥村 | M18: 恰水塘塘内全面清污，塘堤加固，塘周浆砌石护砌 | N18: 14 | O18: 12.5 | P18: 1.5 | Q18: 1 | R18: 42 | S18: 135 | W18: 改善水利条件，方便群众生产、水利灌溉促进发展农业生产增收。 | X18: 该项目建设完成后可以有效的改善储水蓄水灌溉，让周边50余亩水田可以正常灌溉。
A19: 14 | B19: 产业发展 | C19: 生产项目 | D19: 种殖业基地 | E19: 柏祥镇 | F19: 中村村 | G19: 金盆柚种植基地建设 | H19: 新建 | I19: 中村村 | J19: 2025-01-01 | K19: 2025-12-01 | L19: 中村村 | M19: 前期流转林地260亩建设金盆柚项目，追加资金增加60亩种植 | N19: 15.88 | O19: 15.88 | P19: 0 | Q19: 1 | R19: 52 | S19: 152 | W19: 打造村集体经济名片，促进当地农业发展，促进农户生产增收。 | X19: 土地流转分红，就近务工增收
A20: 15 | B20: 产业发展 | C20: 生产项目 | D20: 种殖业基地 | E20: 柏祥镇 | F20: 临港村 | G20: 金禾合作社育秧大棚建设项目 | H20: 新建 | I20: 临港村 | J20: 2025-01-01 | K20: 2025-12-01 | L20: 临港村 | M20: 资金投入临港金禾合作社育秧大棚建设，占地面积5千余平方，用于春耕生产育秧，享受合作社固定分红 | N20: 11 | O20: 11 | P20: 0 | Q20: 1 | R20: 68 | S20: 195 | W20: 打造村集体经济名片，促进当地农业发展，促进农户生产增收。 | X20: 土地流转分红，就近务工增收
A21: 16 | B21: 产业发展 | C21: 生产项目 | D21: 种殖业基地 | E21: 柏祥镇 | F21: 万庆村 | G21: 万庆村跃进组油茶种植基地 | H21: 新建 | I21: 万庆村 | J21: 2025-01-01 | K21: 2025-12-01 | L21: 万庆村 | M21: 万庆村万寿片跃进组项目总面积175亩土地复耕，种植油茶苗株。追加投入35亩油茶种植。 | N21: 21 | O21: 21 | P21: 0 | Q21: 1 | R21: 45 | S21: 156 | W21: 打造村集体经济名片，促进当地农业发展，促进农户生产增收。 | X21: 土地流转分红，就近务工增收
A22: 17 | B22: 产业发展 | C22: 配套基础设施项目 | D22: 小型农田水利设施建设 | E22: 柏祥镇 | F22: 柏祥村 | G22: 柏祥村港堤路及小型水利建设以工代赈项目(以工代赈） | H22: 新建 | I22: 柏祥村 | J22: 2025-01-02 | K22: 2025-12-02 | L22: 柏祥村 | M22: 生态护砌工程790米，港堤路硬化工程1995米，箱涵工程2处，长度共计8米，以及其他相关附属设施建设等 | N22: 100 | O22: 100 | P22: 0 | Q22: 1 | R22: 152 | S22: 456 | W22: 改善水利条件，方便群众生产、水利灌溉促进发展农业生产增收。 | X22: 该项目建设完成后可以有效的改善储水蓄水灌溉，让周边50余亩水田可以正常灌溉。
A23: 18 | B23: 产业发展 | C23: 产业奖补 | D23: 产业奖补 | E23: 柏祥镇 | F23: 柏祥镇 | G23: 2025年产业帮扶及奖补 | H23: 新建 | I23: 柏祥镇 | J23: 2025-07-01 | K23: 2025-10-01 | L23: 柏祥镇 | M23: 对全镇脱贫户、监测户进行产业帮扶和奖补 | N23: 28.33 | O23: 28.33 | P23: 0 | Q23: 9 | R23: 362 | S23: 1168 | T23: 1 | U23: 44 | V23: 1168 | W23: 促进脱贫人口产业发展 | X23: 发放鸡苗等物资促进增收
A24: 19 | B24: 产业发展 | C24: 配套基础设施项目 | D24: 小型农田水利设施建设 | E24: 柏祥镇 | F24: 临港村 | G24: 余家山塘维修项目工程 | H24: 新建 | I24: =H24 -> 新建 | J24: 20251126 | K24: 20251206 | L24: 临港村 | M24: 1、清理山塘内0.8m深的淤泥约2560m³；2、山塘塘提长45m高3.5m宽4m做好塘提的护坡；3、建设使用踏步，4、山塘排水底口更换； | N24: 6.5 | O24: 2 | P24: 4.5 | Q24: 1 | R24: 60 | S24: 182 | T24: 1 | U24: 8 | V24: 26 | W24: 改善水利条件，方便群众生产、水利灌溉促进发展农业生产增收。 | X24: 带动产业发展，带动务工
A25: 20 | B25: 产业发展 | C25: 配套基础设施项目 | D25: 小型农田水利设施建设 | E25: 柏祥镇 | F25: 七一村 | G25: 豆二组双塘扩容项目 | H25: 新建 | I25: 新建 | J25: 20251115 | K25: 20251206 | L25: 七一村 | M25: 1、清理山塘内1.2m深的淤泥约1998m³；2、山塘塘提长50m高2.5m宽3m做好塘提的护坡；3、建设使用踏步，4、山塘排水底口更换； | N25: 5 | O25: 2 | P25: 3 | Q25: 1 | R25: 52 | S25: 156 | T25: 1 | U25: 8 | V25: 25 | W25: 改善水利条件，方便群众生产、水利灌溉促进发展农业生产增收。 | X25: 带动产业发展，带动务工
A26: 21 | B26: 产业发展 | C26: 配套基础设施项目 | D26: 小型农田水利设施建设 | E26: 柏祥镇 | F26: 中村村 | G26: 王太组山塘清淤维修硬化 | H26: 新建 | I26: 新建 | J26: 20251125 | K26: 20251212 | L26: 中村村 | M26: 清淤300立方米，硬化200平方米。 | N26: 7 | O26: 2 | P26: 5 | Q26: 1 | R26: 89 | S26: 178 | T26: 1 | U26: 9 | V26: 27 | W26: 改善水利条件，方便群众生产、水利灌溉促进发展农业生产增收。 | X26: 带动产业发展，带动务工
A27: 22 | B27: 产业发展 | C27: 配套基础设施项目 | D27: 小型农田水利设施建设 | E27: 柏祥镇 | F27: 伏太村 | G27: 付家塘清污硬化 | H27: 新建 | I27: 新建 | J27: 20251125 | K27: 20251215 | L27: 伏太村 | M27: 挖机清污4000个立方，清淤1.5米深，坡面硬化约500平方 | N27: 12 | O27: 8 | P27: 4 | Q27: 1 | R27: 79 | S27: 158 | T27: 1 | U27: 6 | V27: 18 | W27: 改善水利条件，方便群众生产、水利灌溉促进发展农业生产增收。 | X27: 带动产业发展，带动务工
A28: 23 | B28: 乡村建设行动 | C28: 农村基础设施 | D28: 农村道路建设（通村、通户路） | E28: 步仙镇 | F28: 安山村 | G28: 安山片道路拓宽维修 | H28: 改扩建 | I28: 安山片 | J28: 2025-02-01 | K28: 2025-12-01 | L28: 安山村 | M28: 安山片2公里道路拓宽维修 | N28: 40 | O28: 25 | P28: 15 | Q28: 1 | R28: 700 | S28: 2000 | T28: 1 | U28: 40 | V28: 140 | W28: 解决交通安全出行问题 | X28: 解决安山村2000多人交通安全出行问题
A29: 24 | B29: 乡村建设行动 | C29: 农村基础设施 | D29: 农村道路建设（通村、通户路） | E29: 步仙镇 | F29: 安山村 | G29: 胡兴片道路硬化 | H29: 新建 | I29: 胡兴片 | J29: 2025-02-01 | K29: 2025-12-01 | L29: 安山村 | M29: 召宗组到山塝组3.5公里道路硬化 | N29: 40 | O29: 32 | P29: 8 | Q29: 1 | R29: 100 | S29: 350 | T29: 1 | U29: 10 | V29: 30 | W29: 解决交通安全出行问题 | X29: 解决组级300多人安全出行问题
A30: 25 | B30: 乡村建设行动 | C30: 农村基础设施 | D30: 农村道路建设（通村、通户路） | E30: 步仙镇 | F30: 安山村 | G30: 桥梁拓宽加固 | H30: 扩建 | I30: 安山村 | J30: 2025-02-01 | K30: 2025-12-01 | L30: 安山村 | M30: 山塝组/召宗组/禾田组3座桥拓宽加固 | N30: 30 | O30: 20 | P30: 10 | Q30: 3 | R30: 1200 | S30: 4000 | T30: 1 | U30: 100 | V30: 400 | W30: 解决交通安全出行问题 | X30: 解决3个村4000多人安全出行问题
A31: 26 | B31: 产业发展 | C31: 配套基础设施项目 | D31: 小型农田水利设施建设 | E31: 步仙镇 | F31: 安山村 | G31: 水利维修 | H31: 续建 | I31: 安山村 | J31: 2025-02-01 | K31: 2025-12-01 | L31: 安山村 | M31: 安山村5000平方山塘维修 | N31: 10 | O31: 8 | P31: 2 | Q31: 1 | R31: 150 | S31: 450 | T31: 1 | U31: 20 | V31: 60 | W31: 解决水利灌溉问题 | X31: 解决安山村8个组450多人水利灌溉问题
A32: 27 | B32: 产业发展 | C32: 配套基础设施项目 | D32: 小型农田水利设施建设 | E32: 步仙镇 | F32: 安山村 | G32: 安山村农田水毁工程 | H32: 农田升级 | I32: 安山村 | J32: 2025年 | K32: 2025年 | L32: 安山村 | M32: 安山片和胡兴片农田毁坏，田梗，机耕路，水沟维修 | N32: 14 | O32: 5 | P32: 9 | Q32: 1 | R32: 132 | S32: 525 | T32: 1 | U32: 18 | V32: 65 | W32: 解决农户便利种田问题 | X32: 解决安山村农田便利耕种问题
A33: 28 | B33: 产业发展 | C33: 配套基础设施项目 | D33: 小型农田水利设施建设 | E33: 步仙镇 | F33: 北斗岭村 | G33: 北斗岭村上屋组水利设施建设 | H33: 改扩建 | I33: 北斗岭村 | J33: 2025-09-01 | K33: 2025-12-01 | L33: 县农业农村局 | M33: 山塘、水渠、水沟维修 | N33: 23 | O33: 15 | P33: 8 | Q33: 1 | R33: 884 | S33: 3631 | T33: 1 | U33: 65 | V33: 223 | W33: 解决北斗岭村农田水利设施及农田灌溉。 | X33: 解决30个组农田水利设施及农田灌溉。
A34: 29 | B34: 产业发展 | C34: 生产项目 | D34: 种植业基地 | E34: 步仙镇 | F34: 北斗岭村 | G34: 水稻黄豆棉花油菜黄精种植 | H34: 新建 | I34: 北斗岭村 | J34: 2025-02-01 | K34: 2025-12-01 | L34: 北斗岭村 | M34: 提高村级集体经济，解决务工困难人员就业。 | N34: 65 | O34: 55 | P34: 10 | Q34: 1 | R34: 186 | S34: 892 | T34: 1 | U34: 17 | V34: 52 | W34: 涉及17个组，带动种殖业增加收入，减轻脱贫人口外出务工就业压力。 | X34: 涉及17个组，带动种殖业增加收入，减轻脱贫人口外出务工就业压力。
A35: 30 | B35: 乡村建设行动 | C35: 农村基础设施 | D35: 农村道路建设（通村、通户路） | E35: 步仙镇 | F35: 步仙湖村 | G35: 东石路提质油化 | H35: 改建 | I35: 步仙湖村 | J35: 2025-02-01 | K35: 2025-12-01 | L35: 步仙湖村 | M35: 东石路提质油化4.6公里 | N35: 150 | O35: 100 | P35: 50 | Q35: 2 | R35: 800 | S35: 3600 | T35: 2 | U35: 65 | V35: 205 | W35: 方便3600人出行
A36: 31 | B36: 乡村建设行动 | C36: 农村基础设施 | D36: 农村道路建设（通村、通户路） | E36: 步仙镇 | F36: 步仙湖村 | G36: 石牛港浆砌石 | H36: 新建 | I36: 石牛片 | J36: 2025-02-01 | K36: 2025-12-01 | L36: 步仙湖村 | M36: 石牛港浆砌石1.8公里 | N36: 180 | O36: 150 | P36: 30 | Q36: 2 | R36: 800 | S36: 3600 | T36: 2 | U36: 65 | V36: 205 | W36: 灌溉800亩农田
A37: 32 | B37: 产业发展 | C37: 生产项目 | D37: 水产养殖业发展 | E37: 步仙镇 | F37: 步仙湖村 | G37: 岳坊水库生态养鱼产业项目 | H37: 扩建 | I37: 岳坊水库 | J37: 2025-02-01 | K37: 2025-12-01 | L37: 步仙湖村 | M37: 扩建岳坊水库生态养鱼3380万立方 | N37: 100 | O37: 50 | P37: 50 | Q37: 1 | R37: 1150 | S37: 4682 | T37: 1 | U37: 90 | V37: 387 | W37: 增加集体经济收入 | X37: 入股
A38: 33 | B38: 产业发展 | C38: 生产项目 | D38: 养植业基地 | E38: 步仙镇 | F38: 步仙湖村 | G38: 肉鸽养殖 | H38: 扩建 | I38: 关王村 | J38: 2025-02-01 | K38: 2025-12-01 | L38: 步仙湖村 | M38: 投资入股关王村王鸽养殖 | N38: 50 | O38: 13 | P38: 37 | Q38: 1 | R38: 800 | S38: 3600 | T38: 1 | U38: 65 | V38: 205 | W38: 增加集体经济收入 | X38: 为村民提供就业，增加收
A39: 34 | B39: 乡村建设行动 | C39: 农村基础设施 | D39: 农村道路建设（通村、通户路） | E39: 步仙镇 | F39: 步仙湖村 | G39: 东岳至石牛路维修 | H39: 改建 | I39: 步仙湖村 | J39: 2025-05-01 | K39: 2025-12-01 | L39: 步仙湖村 | M39: 东岳至石牛路维修 | N39: 20 | O39: 13 | P39: 7 | Q39: 1 | R39: 300 | S39: 1000 | T39: 1 | U39: 30 | V39: 15 | W39: 方便出行
A40: 35 | B40: 乡村建设行动 | C40: 农村基础设施 | D40: 农村道路建设（通村、通户路） | E40: 步仙镇 | F40: 步仙湖村 | G40: 东岳片谢家组路段硬化 | H40: 新建 | I40: 东岳片 | J40: 2025年 | K40: 2025年 | L40: 步仙湖村 | M40: 硬化55米 | N40: 15 | O40: 5 | P40: 10 | Q40: 1 | R40: 100 | S40: 300 | T40: 1 | U40: 20 | V40: 60 | W40: 方便300人出行
A41: 36 | B41: 乡村建设行动 | C41: 农村基础设施 | D41: 农村道路建设（通村、通户路） | E41: 步仙镇 | F41: 步仙湖村 | G41: 陈相屋通组公路新建 | H41: 新建 | I41: 岳坊片 | J41: 2025年 | K41: 2025年 | L41: 步仙湖村 | M41: 陈相屋通组公路新建120米 | N41: 20 | O41: 5 | P41: 15 | Q41: 1 | R41: 80 | S41: 280 | T41: 1 | U41: 30 | V41: 70 | W41: 方便280人出行
A42: 37 | B42: 乡村建设行动 | C42: 农村基础设施 | D42: 农村道路建设（通村、通户路） | E42: 步仙镇 | F42: 步仙湖村 | G42: 石牛龙坑路新建 | H42: 新建 | I42: 步仙湖村 | J42: 202507 | K42: 202512 | L42: 步仙湖村 | M42: 石牛龙坑路新建 160米 | N42: 20 | O42: 5 | P42: 15 | Q42: 1 | R42: 20 | S42: 80 | T42: 1 | U42: 3 | V42: 10 | W42: 方便出行
A43: 38 | B43: 产业发展 | C43: 生产项目 | D43: 种植业基地 | E43: 步仙镇 | F43: 凤凰村 | G43: 金盆柚种植基地建设（二期） | H43: 续建 | I43: 凤凰村广福片 | J43: 2025-02-01 | K43: 2025-12-01 | L43: 凤凰村 | M43: 在一期260亩基础上扩建150亩（包括道路、高效农业设施建设等） | N43: 200 | O43: 100 | P43: 100 | Q43: 1 | R43: 85 | S43: 350 | T43: 1 | U43: 14 | V43: 31 | W43: 发展集体经济 | X43: 带动脱贫监测人口31人增收
A44: 39 | B44: 产业发展 | C44: 加工流通项目 | D44: 产地初加工和精深加工 | E44: 步仙镇 | F44: 凤凰村 | G44: 湖南鸿泽再生资源有限公司 | H44: 新建 | I44: 凤凰村雷家片 | J44: 2025-02-01 | K44: 2025-12-01 | L44: 凤凰村 | M44: 再生资源回收、加工、销售 | N44: 500 | O44: 100 | P44: 400 | Q44: 1 | R44: 997 | S44: 4025 | T44: 1 | U44: 66 | V44: 252 | W44: 发展集体经济，带动脱贫、监测人口增收 | X44: 解决脱贫、监测人口就业
A45: 40 | B45: 产业发展 | C45: 配套基础设施项目 | D45: 小型农田水利设施建设 | E45: 步仙镇 | F45: 凤凰村 | G45: 凤凰村沙坳堰坝建设项目 | H45: 新建 | I45: 凤凰村柳形片老屋组 | J45: 2025.08 | K45: 2025.12 | L45: 凤凰村村委会 | M45: 堰坝长 8 米、宽 3 米，修复两岸浆砌石护砌 60 方 | N45: 7 | O45: 5 | P45: 2 | Q45: 1 | R45: 80 | S45: 228 | T45: 1 | U45: 8 | V45: 26 | W45: 通过对堰坝整修、加固，提升灌溉功能，提高农业供水能力 | X45: 解决 80 户 100 余亩水田灌溉
A46: 41 | B46: 产业发展 | C46: 生产项目 | D46: 种植业基地 | E46: 步仙镇 | F46: 关王村 | G46: 油茶种植 | H46: 新建 | I46: 关王村 | J46: 2025-02-01 | K46: 2025-12-01 | L46: 关王村 | M46: 提高村级集体经济，解决务工困难人员就业。 | N46: 50 | O46: 20 | P46: 30 | Q46: 1 | R46: 73 | S46: 286 | T46: 1 | U46: 6 | V46: 26 | W46: 发展集体经济，带动脱贫、监测人口增收 | X46: 发展集体经济，带动脱贫、监测人口增收
A47: 42 | B47: 产业发展 | C47: 配套基础设施项目 | D47: 小型农田水利设施建设 | E47: 步仙镇 | F47: 关王村 | G47: 芋头坡塘维修 | H47: 续建 | I47: 关王村 | J47: 2025-02-01 | K47: 2025-12-01 | L47: 关王村 | M47: 护堤、清淤、低涵维修 | N47: 20 | O47: 12 | P47: 8 | Q47: 1 | R47: 56 | S47: 183 | T47: 1 | U47: 2 | V47: 7 | W47: 通过对山塘进行清淤、加固，实现蓄水能力提升，提高农业生产供水能力 | X47: 解决2个组，贫困户2户7人水利灌溉问题
A48: 43 | B48: 产业发展 | C48: 生产项目 | D48: 养殖基地 | E48: 步仙镇 | F48: 山美村 | G48: 王鸽养殖项目 | H48: 联村共创入股 | I48: 关王村义先片 | J48: 2025.08 | K48: 2025.12 | L48: 山美村 | M48: 入股和成鸽业50万元 ， | N48: 100 | O48: 50 | P48: 50 | Q48: 1 | R48: 836 | S48: 3714 | T48: 1 | U48: 43 | V48: 119 | W48: 50 万元入股和成鸽业，依托现有养殖基地，进 | X48: 可提供就业岗位15人，劳务调工200人次
A49: 44 | B49: 产业发展 | C49: 生产项目 | D49: 种植业基地 | E49: 步仙镇 | F49: 山美村 | G49: 特色农产品种植 | H49: 新建 | I49: 石美片 | J49: 2025-02-01 | K49: 2025-12-01 | L49: 山美村 | M49: 金盆柚种植，油茶种植，规模400亩 | N49: 40 | O49: 20 | P49: 20 | Q49: 1 | R49: 125 | S49: 562 | T49: 0 | U49: 22 | V49: 46 | W49: 预计完成土地流转，村级集体经济增收5万元 | X49: 组织农户投劳，参与建设生产，获得劳动报酬
A50: 45 | B50: 乡村建设行动 | C50: 农村基础设施 | D50: 农村道路建设（通村、通户路） | E50: 步仙镇 | F50: 山美村 | G50: 柘山片通组道路建设 | H50: 新建 | I50: 山美村 | J50: 2025-02-01 | K50: 2025-12-01 | L50: 山美村 | M50: 柘山片通组道路硬化， | N50: 30 | O50: 14 | P50: 16 | Q50: 1 | R50: 226 | S50: 856 | T50: 0 | U50: 31 | V50: 56 | W50: 完成柘山片道路连通 | X50: 组织农户投劳，参与建设生产，获得劳动报酬
A51: 46 | B51: 产业发展 | C51: 配套基础设施项目 | D51: 小型农田水利设施建设 | E51: 步仙镇 | F51: 山美村 | G51: 小型农田水利设施 | H51: 续建 | I51: 山美村 | J51: 2025-02-01 | K51: 2025-12-01 | L51: 山美村 | M51: 山塘、水沟维修 | N51: 15 | O51: 10 | P51: 5 | Q51: 1 | R51: 125 | S51: 562 | T51: 0 | U51: 22 | V51: 46 | W51: 预计完成山塘维修3口及200米水沟维修。 | X51: 组织农户投劳，参与建设生产，获得劳动报酬
A52: 47 | B52: 乡村建设行动 | C52: 农村基础设施 | D52: 农村道路建设（通村、通户路） | E52: 步仙镇 | F52: 狮山社区 | G52: 柏凤公路至西边组道路维修 | H52: 新建 | I52: 柏凤公路至西边组 | J52: 2025-02-01 | K52: 2025-12-01 | L52: 狮山社区 | M52: 硬化路面宽3.5米，长400米 | N52: 16 | O52: 12 | P52: 4 | Q52: 3 | R52: 165 | S52: 520 | T52: 1 | U52: 6 | V52: 24 | W52: 解决交通安全出行问题 | X52: 解决3个组500余人，脱贫户6户交通出行问题
A53: 48 | B53: 乡村建设行动 | C53: 农村基础设施 | D53: 农村道路建设（通村、通户路） | E53: 步仙镇 | F53: 狮山社区 | G53: 柏凤公路至新屋道路维修 | H53: 新建 | I53: 柏凤公路至新屋 | J53: 2025-02-01 | K53: 2025-12-01 | L53: 狮山社区 | M53: 硬化路面宽3.5米，长300米 | N53: 12 | O53: 10 | P53: 2 | Q53: 2 | R53: 90 | S53: 410 | T53: 1 | U53: 5 | V53: 22 | W53: 解决交通安全出行问题 | X53: 解决2个组400余人，脱贫户5户交通出行问题
A54: 49 | B54: 产业发展 | C54: 生产项目 | D54: 种植业基地 | E54: 步仙镇 | F54: 狮山社区 | G54: 水果基地 | H54: 新建 | I54: 团山至日秀 | J54: 2025-02-01 | K54: 2025-12-01 | L54: 狮山社区 | M54: 流转土地300亩，投资入股进行水果种植 | N54: 50 | O54: 40 | P54: 10 | Q54: 6 | R54: 210 | S54: 1200 | T54: 1 | U54: 11 | V54: 45 | W54: 解决就业问题 | X54: 解决脱贫户11户，10个劳动力的就业问题
A55: 50 | B55: 产业发展 | C55: 配套基础设施项目 | D55: 种植业基地 | E55: 步仙镇 | F55: 松溪村 | G55: 唐儒 片后 山配套设施建设 | H55: 新建 | I55: 唐儒片后山 | J55: 2025-02-01 | K55: 2025-12-01 | L55: 松溪村 | M55: 果园精细化管理，300亩滴灌，标准化冷库建设 | N55: 150 | O55: 100 | P55: 50 | Q55: 1 | R55: 890 | S55: 3126 | T55: 1 | U55: 37 | V55: 135 | W55: 完善配套设施建设，增强产品时值，提升优质产业竞争力 | X55: 带动村民附加产业发展，解决村民就业及劳务调工约1000人次
A56: 51 | B56: 就业项目 | C56: 就业 | D56: 帮扶车间（特色手工基地）建设 | E56: 步仙镇 | F56: 仙桥村 | G56: 缝纫车间（鸿河缝纫有限公司） | H56: 改建 | I56: 仙桥村 | J56: 2025-02-01 | K56: 2025-12-01 | L56: 仙桥村 | M56: 加工服务 | N56: 30 | O56: 20 | P56: 10 | Q56: 4 | R56: 32 | S56: 96 | T56: 12 | U56: 7 | V56: 26 | W56: 为村民提供就业，增加收入 | X56: 为村民提供就业，增加收入
A57: 52 | B57: 乡村建设行动 | C57: 农村基础设施 | D57: 农村道路建设（通村、通户路） | E57: 步仙镇 | F57: 仙桥村 | G57: 桥梁拆除重建工程 | H57: 重建 | I57: 仙桥村 | J57: 2025-02-01 | K57: 2025-12-01 | L57: 仙桥村 | M57: 基础工程、旧桥拆除、新桥重建 | N57: 95 | O57: 40 | P57: 55 | Q57: 1 | R57: 324 | S57: 1865 | T57: 2 | U57: 40 | V57: 137 | W57: 解决全村村民的生产及出行安全 | X57: 解决全村村民的生产及出行安全
A58: 53 | B58: 产业发展 | C58: 生产项目 | D58: 种植业基地 | E58: 步仙镇 | F58: 仙桥村 | G58: 油茶林基地 | H58: 修建 | I58: 仙桥村 | J58: 2025-02-01 | K58: 2025-12-01 | L58: 仙桥村 | M58: 种植、养护、 | N58: 50 | O58: 30 | P58: 20 | Q58: 1 | R58: 324 | S58: 1865 | T58: 1 | U58: 19 | V58: 70 | W58: 增加集体经济收入 | X58: 为村民提供就业，增加收
A59: 54 | B59: 乡村建设行动 | C59: 农村基础设施 | D59: 农村道路建设（通村、通户路） | E59: 步仙镇 | F59: 新合村 | G59: 谷冲道路硬化 | H59: 新建南 | I59: 新合村 | J59: 2025.10.20 | K59: 2025.11.30 | L59: 新合村 | M59: 道路拓宽硬化，全长3公里 | N59: 200 | O59: 20 | P59: 180 | Q59: 1 | R59: 710 | S59: 2100 | T59: 1 | U59: 36 | V59: 110 | W59: 解决交通安全出行问题 | X59: 解决全村村民的生产及出行安全
A60: 55 | B60: 乡村建设行动 | C60: 农村基础设施 | D60: 农村道路建设（通村、通户路） | E60: 步仙镇 | F60: 仙桥村 | G60: 辛淑三桥拆除重建工程 | H60: 续建 | I60: 仙桥村 | J60: 2025.11.15 | K60: 2025.12.01 | L60: 仙桥村 | M60: 辛淑三桥老桥拆除，新建板桥一座，桥梁全长33米，宽7米 | N60: 96 | O60: 20 | P60: 76 | Q60: 1 | R60: 324 | S60: 1865 | T60: 2 | U60: 40 | V60: 137 | W60: 解决生活生产交通出行问题 | X60: 解决全村村民的生产及出行安全
A61: 56 | B61: 乡村建设行动 | C61: 农村基础设施 | D61: 产业路、资源路、旅游路建设 | E61: 步仙镇 | F61: 凤凰村 | G61: 进化集镇至万召片道路升级改造 | H61: 新建 | I61: 凤凰村 | J61: 2025.12 | K61: 20251230.00 | L61: 凤凰村 | M61: 对产业路路边长90米、高2米、底宽1.5米、面宽0.8米浆砌石驳岸护砌 | N61: 280 | O61: 2 | P61: 278 | Q61: 1 | R61: 483 | S61: 1450 | T61: 1 | U61: 31 | V61: 98 | W61: 解决金盆柚基地交通 | X61: 发展集体经济，带动脱贫、监测人口增收
A62: 57 | B62: 产业发展 | C62: 生产项目 | D62: 水产养殖业发展 | E62: 筻口镇 | F62: 西冲村 | G62: 西冲水库水产养殖项目 | H62: 新建 | I62: 西冲水库 | J62: 2025.6.20 | K62: 2025.7.6 | L62: 西冲村 | M62: 入股西冲水库水产养殖三年 | N62: 10 | O62: 10 | P62: 0 | Q62: 1 | R62: 920 | S62: 3016 | T62: 1 | U62: 39 | V62: 94 | W62: 解决了西冲村产业发展提升农户经济收入 | X62: 保障脱贫户、监测户稳定增收。
A63: 58 | B63: 乡村建设行动 | C63: 农村基础设施 | D63: 产业路、资源路、旅游路建设 | E63: 筻口镇 | F63: 西冲村 | G63: 双港片小型猪场产业路硬化项目 | H63: 新建 | I63: 双港片郭家组小型猪场产业路提质改造 | J63: 2025.9.3 | K63: 2025.12.28 | L63: 西冲村 | M63: 双港片郭家组小型猪场产业路提质改造（900米） | N63: 7 | O63: 5 | P63: 2 | Q63: 1 | R63: 106 | S63: 318 | T63: 1 | U63: 5 | V63: 15 | W63: 解决了西冲村产业发展提升农户经济收入 | X63: 保障脱贫户、监测户稳定增收。
A64: 59 | B64: 产业发展 | C64: 生产项目 | D64: 种植业基地 | E64: 筻口镇 | F64: 明星村 | G64: 明星村桑葚种植项目 | H64: 新建 | I64: 明星村 | J64: 2025.5 | K64: 2025.12 | L64: 明星村 | M64: 盘活空闲土地100亩，进行桑葚种植 | N64: 22 | O64: 15 | P64: 7 | Q64: 1 | R64: 120 | S64: 298 | T64: 1 | U64: 16 | V64: 42 | W64: 带动周边劳动力12余人，预计劳动力人均增收5千元以上，提高村民人均收入。挂果后预计为村集体每年创收2万元。 | X64: 保障脱贫户、监测户稳定增收。
A65: 60 | B65: 产业发展 | C65: 配套基础设施项目 | D65: 小型农田水利设施建设 | E65: 筻口镇 | F65: 老街居委会 | G65: 大柳片柳家大门塘清淤护砌 | H65: 重建 | I65: 老街居委会大柳片 | J65: 2025.4.7 | K65: 2025.6.20 | L65: 老街居委会 | M65: 塘岸围栏及护坡，塘底清淤转运 | N65: 13.8 | O65: 8 | P65: 5.8 | Q65: 1 | R65: 156 | S65: 512 | T65: 1 | U65: 8 | V65: 23 | W65: 建成后有效改善居民的农田灌溉问题 | X65: 群众筹资筹劳参与水利基础设施建设，保障脱贫户、监测户稳定增收
A66: 61 | B66: 乡村建设行动 | C66: 农村基础设施 | D66: 产业路、资源路、旅游路建设 | E66: 筻口镇 | F66: 筻口居委会 | G66: 新华片产业路扩宽硬化 | H66: 新建 | I66: 筻口居委会 | J66: 2025.3 | K66: 2025.12 | L66: 筻口居委会 | M66: 筻口居委会新华片产业路扩宽硬化500米 | N66: 12 | O66: 5 | P66: 7 | Q66: 1 | R66: 107 | S66: 363 | T66: 0 | U66: 3 | V66: 10 | W66: 建成维修后有效改善107户363人农田耕种问题，经居支两委、联村领导、党员、群众代表讨论决议新华片产业路扩宽硬化。 | X66: 保障脱贫户、监测户稳定增收。
A67: 62 | B67: 产业发展 | C67: 生产项目 | D67: 种植业基地 | E67: 筻口镇 | F67: 大塘村 | G67: 油茶园入股经营项目 | H67: 新建 | I67: 锹塘片 | J67: 2025 | K67: 2038 | L67: 大塘村 | M67: 大塘村在岳阳县锹塘生态油茶专业合作社入股10万元。占百分之5的股份，入股期（2025年至2038年）， | N67: 200 | O67: 10 | P67: 190 | Q67: 1 | R67: 998 | S67: 3350 | T67: 1 | U67: 71 | V67: 163 | W67: 建成后有效改善大塘村村民农田灌溉、交通安全、公益事业等问题，为998户农户，3350人（包含脱贫户、监测户71户，163人）增加60元每人的经济收入 | X67: 保障脱贫户、监测户稳定增收。
A68: 63 | B68: 产业发展 | C68: 生产项目 | D68: 种植业基地 | E68: 筻口镇 | F68: 沙南新村 | G68: 沙南新村黄精瓜篓基地建设 | H68: 续建 | I68: 世庠片8组 | J68: 2025.6.20 | K68: 2025.9.24 | L68: 沙南新村 | M68: 黄精瓜篓基地37亩续建 | N68: 5 | O68: 5 | P68: 0 | Q68: 1 | R68: 30 | S68: 156 | T68: 0 | U68: 6 | V68: 12 | W68: 群众增收，壮大集体经济收入 | X68: 保障脱贫户、监测户稳定增收。
A69: 64 | B69: 产业发展 | C69: 生产项目 | D69: 种植业基地 | E69: 筻口镇 | F69: 漆市村 | G69: 漆市村 漆家埠有机萝卜种植基地 | H69: 新建 | I69: 漆市村漆市片 | J69: 2025.08 | K69: 2025.09 | L69: 漆市村 | M69: 打造一个集萝卜种植、加工、销售为一体的现代化农业产业70亩基地 | N69: 8 | O69: 7 | P69: 1 | Q69: 1 | R69: 169 | S69: 565 | T69: 1 | U69: 10 | V69: 31 | W69: 对漆市村打造一个集萝卜种植、加工、销售为一体的现代化农业产业基地，通过科学种植管理和市场营销，实现萝卜的优质、高产、高效生产，提高市场竞争力，为漆市村农业经济发展做出贡献 | X69: 保障脱贫户、监测户稳定增收。
A70: 65 | B70: 产业发展 | C70: 生产项目 | D70: 种植业基地 | E70: 筻口镇 | F70: 笔架山村 | G70: 笔架山村醇香菜籽油品牌打造 | H70: 新建 | I70: 笔架山村 | J70: 2025年 6月 | K70: 2025年 8月 | L70: 笔架山村 | M70: 改善菜籽油种植基地、菜籽油质量升级、扩大销售渠道、提高菜籽油品牌知名度 | N70: 11.8 | O70: 5 | P70: 6.8 | Q70: 1 | R70: 1344 | S70: 4400 | T70: 1 | U70: 54 | V70: 157 | W70: 带动农户、脱贫户、监测户巩固脱贫攻坚成果 | X70: 保障脱贫户、监测户稳定增收。
A71: 66 | B71: 产业发展 | C71: 生产项目 | D71: 种植业基地 | E71: 筻口镇 | F71: 潼溪村 | G71: 潼溪村金盆柚基地种植项目 | H71: 续建 | I71: 井塘片、中心片 | J71: 2025-05-01 | K71: 2025-12-30 | L71: 潼溪村委会 | M71: 对2024年潼溪村金盆柚基地种植项目扩建10亩，并进行补苗、施肥、锄草等管护 | N71: 25 | O71: 25 | P71: 0 | Q71: 1 | R71: 689 | S71: 2282 | U71: 12 | V71: 21 | W71: 项目总受益689户2282人数，其中带动脱贫户12户21人受益，预期每年/每人/每户增收200元 | X71: 保障脱贫户、监测户稳定增收。
A72: 67 | B72: 乡村建设行动 | C72: 农村基础设施 | D72: 产业路、资源路、旅游路建设 | E72: 筻口镇 | F72: 熊市村 | G72: 界岭片三组产业路硬化及水渠现浇工程 | H72: 新建 | I72: 界岭片三组 | J72: 2025年2月 | K72: 2025年12月 | L72: 熊市村 | M72: 新修机产业路并硬化，道路全长220米，宽3米，厚20公分，并将沟渠现浇180米。 | N72: 10 | O72: 8 | P72: 2 | Q72: 1 | R72: 34 | S72: 131 | T72: 1 | U72: 3 | V72: 8 | W72: 为界岭片三组及周边农户出行提供便利，方便农机作业，为农田灌溉提供有利条件。受益农户34户131人，其中脱贫户3户8人。 | X72: 保障脱贫户、监测户稳定增收。
A73: 68 | B73: 乡村建设行动 | C73: 农村基础设施 | D73: 产业路、资源路、旅游路建设 | E73: 筻口镇 | F73: 朱仑村 | G73: 牌头片朱仑咀产业路扩宽硬化 | H73: 新建 | I73: 牌头片 | J73: 2025.1.1 | K73: 2025.12.30 | L73: 朱仑村 | M73: 长400米、宽4.5米道路硬化 | N73: 20 | O73: 12 | P73: 8 | Q73: 1 | R73: 35 | S73: 100 | T73: 0 | U73: 5 | V73: 10 | W73: 建成后有效改善朱仑片朱仑咀农户的出行方便问题 | X73: 保障脱贫户、监测户稳定增收。
A74: 69 | B74: 产业发展 | C74: 生产项目 | D74: 种植业基地 | E74: 筻口镇 | F74: 释迦寺村 | G74: 火龙果产业 | H74: 新建 | I74: 中安四组 | J74: 2025.7.10 | K74: 2028.7.10 | L74: 释迦寺村 | M74: 入股资金50万元参与岳阳县润园果香农业有限公司火龙果产业项目，村集体每年预计分红3万元 | N74: 81 | O74: 50 | P74: =N74-O74 -> 31 | Q74: 1 | R74: 21 | S74: 63 | T74: 1 | U74: 7 | V74: 21 | W74: 项目带动21户村民受益，预期每年/每人增收500元。 | X74: 保障脱贫户、监测户稳定增收。
A75: 70 | B75: 产业发展 | C75: 产业服务支撑项目 | D75: 农业社会化服务 | E75: 筻口镇 | F75: 筻口镇 | G75: 两有对象产业奖补 | H75: 续建 | I75: 全镇 | J75: 2025.1 | K75: 2025.12 | L75: 筻口镇 | M75: 大面脱贫户、监测户产业帮扶 | N75: 39.24 | O75: 39.24 | P75: 0 | Q75: 15 | R75: 356 | S75: 957 | T75: 15 | U75: 99 | V75: 223 | W75: 带动脱贫户监测户增收，巩固脱贫攻坚成果 | X75: 保障脱贫户、监测户稳定增收。
A76: 71 | B76: 产业发展 | C76: 配套基础设施项目 | D76: 小型农田水利设施建设 | E76: 筻口镇 | F76: 漆市村 | G76: 漆市村漆市片4组水渠硬化项目 | H76: 新建 | I76: 漆市村漆市片 | J76: 2025.11 | K76: 2025.12 | L76: 漆市村 | M76: 对漆市片4组220米长、底宽0.6米、面宽0.8米水渠进行维修硬化 | N76: 8 | O76: 5 | P76: 3 | Q76: 1 | R76: 75 | S76: 291 | T76: 1 | U76: 3 | V76: 10 | W76: 解决了漆市村漆市片4组291人农田灌溉条件 | X76: 群众筹资筹劳参与水利基础设施建设，保障脱贫户、监测户稳定增收
A77: 72 | B77: 乡村建设行动 | C77: 农村基础设施 | D77: 农村道路建设（通村、通户路） | E77: 筻口镇 | F77: 大塘村 | G77: 刘四屋至大塘老屋方连接路（道路拓宽硬化） | H77: 维修 | I77: 大塘片 | J77: 2025.7.1 | K77: 2025.8.20 | L77: 大塘村 | M77: 对刘四屋至大塘老屋方400米道路进行拓宽、硬化，在原道路基层上拓宽1.5米，用挖机进行清除杂草和开挖，并在合适地方修建30米*0.5米*1米的驳岸，对原道路进行植筋处理，然后用C20标准混凝土进行硬化处理，厚度标准为0.2米。 | N77: 9.089 | O77: 5 | P77: 4.089 | Q77: 1 | R77: 132 | S77: 431 | T77: 1 | U77: 11 | V77: 26 | W77: 刘四屋至大塘老屋方连接路（道路拓宽），全长400米，拓宽1.5米，厚0.2米。建成后有效改善大塘片2.3.4.9组村民132户，431人（其中脱贫户、监测户11户，26人）出行及交通安全隐患，经村、支两委、联村领导、党员、群众代表讨论决议将该道路进行拓宽硬化处理。 | X77: 保障脱贫户、监测户稳定增收。
A78: 73 | B78: 产业发展 | C78: 配套基础设施项目 | D78: 小型农田水利设施建设 | E78: 筻口镇 | F78: 游港村 | G78: 游港村游港片 优质稻基地配套水利建设2025 | H78: 新建 | I78: 游港村游港片 | J78: 2025.4 | K78: 2025.12 | L78: 游港村 | M78: 游港片水渠清淤硬化1100*0.6*0.8米 | N78: 26 | O78: 20 | P78: 6 | Q78: 1 | R78: 45 | S78: 469 | T78: 1 | U78: 3 | V78: 14 | W78: 解决游港村游港片469人农田水利 | X78: 群众筹资筹劳参与水利基础设施建设，保障脱贫户、监测户稳定增收
A79: 74 | B79: 产业发展 | C79: 配套基础设施项目 | D79: 小型农田水利设施建设 | E79: 筻口镇 | F79: 漆市村 | G79: 漆市村漆市片2、3组水渠硬化项目 | H79: 新建 | I79: 漆市村漆市片 | J79: 2025.11 | K79: 2025.12 | M79: 对漆市片2、.3组280米长、底宽0.4米、面宽0.6米水渠进行维修及硬化 | N79: 6 | O79: 5 | P79: 1 | Q79: 1 | R79: 99 | S79: 376 | T79: 1 | U79: 6 | V79: 13 | W79: 解决了漆市村漆市片2、3组376人农田灌溉条件 | X79: 群众筹资筹劳参与水利基础设施建设，保障脱贫户、监测户稳定增收
A80: 75 | B80: 乡村建设行动 | C80: 农村基础设施 | D80: 农村道路建设（通村、通户路） | E80: 筻口镇 | F80: 大塘村 | G80: 刘桂片村级道路硬化 | H80: 新建 | I80: 刘桂片 | J80: 2025.3.10 | K80: 2025.12.18 | L80: 大塘村 | M80: 村级430米道路硬化 | N80: 26.45 | O80: 10 | P80: 16.45 | Q80: 1 | R80: 65 | S80: 253 | T80: 1 | U80: 8 | V80: 23 | W80: 刘桂片村级道路硬化，全长430米，宽5米，厚0.2米，建成后有效改善刘桂片1.2.3.4组村民65户，253人（其中脱贫户、监测户8户，23人）出行及交通安全隐患，经村、支两委、联村领导、党员、群众代表讨论决议将该道路进行硬化处理。 | X80: 保障脱贫户、监测户稳定增收。
A81: 76 | B81: 乡村建设行动 | C81: 农村基础设施 | D81: 产业路、资源路、旅游路建设 | E81: 筻口镇 | F81: 西冲村 | G81: 西冲村S308至双港片二组危桥拆除重建建设 | H81: 新建 | I81: 西冲村双港片 | J81: 2025.10.16 | K81: 2025.12.30 | L81: 西冲村 | M81: 西冲村S308至双港片二组危桥拆除重建长8米宽4.5米 | N81: 60 | O81: 5 | P81: 55 | Q81: 1 | R81: 920 | S81: 3016 | T81: 1 | U81: 38 | V81: 100 | W81: 解决了西冲村产业发展提升农户经济收入 | X81: 保障脱贫户、监测户稳定增收。
A82: 77 | B82: 乡村建设行动 | C82: 农村基础设施 | D82: 农村道路建设（通村、通户路） | E82: 筻口镇 | F82: 游港村 | G82: 游港村游港片道路硬化项目 | H82: 新建 | I82: 筻口镇游港村游港片 | J82: 2025.3 | K82: 2025.10 | L82: 游港村 | M82: 对游港片四组150米长、7米宽道路进行硬化 | N82: 11 | O82: 5 | P82: 6 | Q82: 1 | R82: 30 | S82: 107 | T82: 1 | U82: 1 | V82: 4 | W82: 解决游港村游港片107人出行方便 | X82: 保障脱贫户、监测户稳定增收。
A83: 78 | B83: 产业发展 | C83: 配套基础设施项目 | D83: 小型农田水利设施建设 | E83: 筻口镇 | F83: 熊市村 | G83: 界岭片一三五组渠道硬化 | H83: 新建 | I83: 界岭片一、三、五组 | J83: 2025.2 | K83: 2025.12 | L83: 熊市村 | M83: 界岭片一组渠道长260米，三组300米，五组550米进行渠道硬化 | N83: 35 | O83: 5 | P83: 30 | Q83: 1 | R83: 94 | S83: 356 | T83: 1 | U83: 7 | V83: 13 | W83: 解决界岭片一、三、五组的农田水利灌溉条件。受益农户94户356人，受益农田600多亩。其中脱贫户7户13人。 | X83: 群众筹资筹劳参与水利基础设施建设，保障脱贫户、监测户稳定增收
A84: 79 | B84: 产业发展 | C84: 配套基础设施项目 | D84: 小型农田水利设施建设 | E84: 筻口镇 | F84: 漆市村 | G84: 漆市村漆市片6-9组下石桥水渠硬化项目 | H84: 新建 | I84: 漆市村漆市片 | J84: 2025.11 | K84: 2025.12 | L84: 漆市村 | M84: 对漆市片6-9组296米长、底宽0.4米、面宽0.6米水渠进行维修及硬化 | N84: 6 | O84: 5 | P84: 1 | Q84: 1 | R84: 117 | S84: 455 | T84: 1 | U84: 7 | V84: 24 | W84: 解决了漆市村漆市片6-9组455人农田灌溉条件 | X84: 群众筹资筹劳参与水利基础设施建设，保障脱贫户、监测户稳定增收
A85: 80 | B85: 产业发展 | C85: 配套基础设施项目 | D85: 小型农田水利设施建设 | E85: 筻口镇 | F85: 筻口居委会 | G85: 筻口居委会新塘水库扩容维修 | H85: 续建 | I85: 筻口居委会 | J85: 20251201 | K85: 20251219 | L85: 筻口居委会 | M85: 新塘水库漏水处堤坝新建驳岸，约50米X10米,同时进行清淤扩容 | N85: 6 | O85: 5 | P85: 1 | Q85: 1 | R85: 101 | S85: 303 | T85: 1 | U85: 2 | V85: 6 | W85: 维修后有效改善92户303人农田灌溉问题，经居支两委、联村领导、党员、群众代表讨论决议机新塘水库扩容及维修。 | X85: 群众筹资筹劳参与水利基础设施建设，保障脱贫户、监测户稳定增收
A86: 81 | B86: 产业发展 | C86: 配套基础设施项目 | D86: 小型农田水利设施建设 | E86: 筻口镇 | F86: 释迦寺村 | G86: 释迦寺村优质稻基地配套水利建设 | H86: 续建 | I86: 释迦寺村 | J86: 20251101 | K86: 20251219 | L86: 释迦寺村 | M86: 中安片七组水渠清理450米，新建水泥U型槽40规格220米 | N86: 8 | O86: 3 | P86: 5 | Q86: 1 | R86: 159 | S86: 636 | T86: 1 | U86: 11 | V86: 49 | W86: 解决释迦寺村的农业生产，用水灌溉问题。受益农户69户，受益农田1100多亩。 | X86: 群众筹资筹劳参与水利基础设施建设，保障脱贫户、监测户稳定增收
A87: 82 | B87: 产业发展 | C87: 配套基础设施项目 | D87: 小型农田水利设施建设 | E87: 筻口镇 | F87: 移山村 | G87: 移山村莲塘片门口塘清淤 | H87: 续建 | I87: 移山村 | J87: 20251201 | K87: 20251219 | L87: 移山村 | M87: 移山村莲塘片九组门口塘7.5亩水面扫障清淤，清淤约2米深 | N87: 8 | O87: 3 | P87: 5 | Q87: 1 | R87: 25 | S87: 106 | T87: 1 | U87: 2 | V87: 5 | W87: 解决了 移山村 莲塘片村民农业生产 | X87: 群众筹资筹劳参与水利基础设施建设，保障脱贫户、监测户稳定增收
A88: 83 | B88: 产业发展 | C88: 生产项目 | D88: 种植业基地 | E88: 公田镇 | F88: 大塅村 | G88: 养生稻种植 | H88: 新建 | I88: 板桥片 | J88: 2025.5 | K88: 2025.11 | L88: 大塅村 | M88: 培育，除草等日常管护 | N88: 40 | O88: 11 | P88: 29 | Q88: 1 | R88: 52 | S88: 164 | T88: 0 | U88: 24 | V88: 57 | W88: 壮大村集体经济 | X88: 受益群众52户其中贫户数及防止返贫监测对象户数24户，脱贫人口数及防止返贫监测对象人口数57人，通过以工代赈，增加收入巩固脱贫成果
A89: 84 | B89: 产业发展 | C89: 生产项目 | D89: 种植业基地 | E89: 公田镇 | F89: 大塅村 | G89: 金盆柚种植 | H89: 新建 | I89: 芳山、板桥 | J89: 2025.05 | K89: 2025.12 | L89: 大塅村 | M89: 种植面积50亩 | N89: 11 | O89: 5 | P89: 6 | Q89: 1 | R89: 14 | S89: 50 | T89: 0 | U89: 5 | V89: 18 | W89: 提高脱贫人口收入 | X89: 受益群众14户其中贫户数及防止返贫监测对象户数5户，脱贫人口数及防止返贫监测对象人口数18人，通过以工代赈，增加收入巩固脱贫成果
A90: 85 | B90: 产业发展 | C90: 生产项目 | D90: 种植业基地 | E90: 公田镇 | F90: 东淇村 | G90: 金盆柚种植 | H90: 新建 | I90: 毛塅组桥头组 | J90: 2025.03 | K90: 2025.04 | L90: 东淇村 | M90: 毛塅组种植金盆柚20亩；桥头组种植金盆柚10亩 | N90: 22 | O90: 10 | P90: 12 | Q90: 1 | R90: 128 | S90: 482 | T90: 0 | U90: 20 | V90: 63 | W90: 壮大村集体经济、提高脱贫人口收入 | X90: 受益群众128户其中贫户数及防止返贫监测对象户数20户，脱贫人口数及防止返贫监测对象人口数63人，通过以工代赈，增加收入巩固脱贫成果
A91: 86 | B91: 产业发展 | C91: 生产项目 | D91: 种植业基地 | E91: 公田镇 | F91: 东新村 | G91: 油茶基地 | H91: 新建 | I91: 裕家组后山 | J91: 2025.05 | K91: 2025.12 | L91: 东新村 | M91: 油茶日常管护 | N91: 11 | O91: 9 | P91: 2 | Q91: 1 | R91: 60 | S91: 214 | U91: 9 | V91: 31 | X91: 壮大村集体经济
A92: 87 | B92: 产业发展 | C92: 加工流通项目 | D92: 加工业 | E92: 公田镇 | F92: 飞云村 | G92: 榨油作坊 | H92: 新建 | I92: 中段组 | J92: 2025 | K92: 20251230 | L92: 飞云村 | M92: 目前本村有种植油茶一千多亩，盘活利用原飞云村小学用来建村办厂房，利用空闲地块建作坊，并建立自己的销售直播间，在销售茶油的同时可以为当地村民销售农副产品，提高群众收入 | N92: 10 | O92: 10 | P92: 0 | Q92: 1 | R92: 820 | S92: 2800 | T92: 1 | U92: 117 | V92: 320 | X92: 壮大村集体经济
A93: 88 | B93: 产业发展 | C93: 生产项目 | D93: 种植业基地 | E93: 公田镇 | F93: 甘田村 | G93: 甘田村大豆种植 | H93: 新建 | I93: 甘田村 | J93: 2025.5 | K93: 2025.6 | L93: 甘田村 | M93: 盘活空闲土地130亩，采用机械进行翻耕整合土地，施肥、锄草、日常维护 | N93: 7 | O93: 7 | P93: 0 | Q93: 1 | R93: 799 | S93: 2705 | T93: 1 | U93: 62 | V93: 155 | W93: 壮大村集体经济 | X93: 带动脱贫户和周边零散劳动力就业178人。
A94: 89 | B94: 产业发展 | C94: 生产项目 | D94: 养殖业基地 | E94: 公田镇 | F94: 港口村 | G94: 港口村三淼猪场入股分红 | H94: 新建 | I94: 港口片 | J94: 2025.5 | K94: 2025.12 | L94: 港口村 | M94: 三淼猪场入股分红 | N94: 82.4 | O94: 26 | P94: 56.4 | Q94: 1 | R94: 654 | S94: 2564 | T94: 0 | U94: 63 | V94: 165 | W94: 壮大村集体经济 | X94: 受益群众654户其中贫户数及防止返贫监测对象户数63户，脱贫人口数及防止返贫监测对象人口数165人，通过以工代赈，增加收入巩固脱贫成果
A95: 90 | B95: 产业发展 | C95: 生产项目 | D95: 种植业基地 | E95: 公田镇 | F95: 公田社区 | G95: 猕猴桃基地后续管理 | H95: 新建 | I95: 新屋组 | J95: 2025.5 | K95: 2025.11 | L95: 公田社区 | M95: 培育，除草等日常管护 | N95: 16 | O95: 14 | P95: 2 | Q95: 1 | R95: 360 | S95: 800 | T95: 0 | U95: 44 | V95: 109 | W95: 壮大村集体经济 | X95: 受益群众21户其中脱贫户数及防止返贫监测对象户数13户，脱贫人口数及防止返贫监测对象人口数28人，通过以工代赈，增加收入巩固脱贫成果。
A96: 91 | B96: 产业发展 | C96: 生产项目 | D96: 种植业基地 | E96: 公田镇 | F96: 公田镇 | G96: 产业奖补 | H96: 续建 | I96: 公田镇 | J96: 2025.5 | K96: 2025.12 | L96: 公田镇 | M96: 对全镇范围内脱贫户、监测户提供产业奖补 | N96: 56.62 | O96: 56.62 | P96: 0 | Q96: 1 | R96: 1112 | S96: 3618 | T96: 1 | U96: 24 | V96: 72 | W96: 壮大村集体经济 | X96: 带动脱贫户和周边零散劳动力就业80人。
A97: 92 | B97: 乡村建设行动 | C97: 农村基础设施 | D97: 其他 | E97: 公田镇 | F97: 公田镇 | G97: 易地搬迁点资产维修、维护 | H97: 新建 | I97: 公田镇 | J97: 2025·10 | K97: 2025·12 | L97: 公田镇 | M97: 对易地搬迁安置点现有资产进行维修与维护 | N97: 24 | O97: 24 | P97: 0 | Q97: 1 | R97: 460 | S97: 1890 | U97: 20 | V97: 56 | X97: 壮大村集体经济
A98: 93 | B98: 产业发展 | C98: 生产项目 | D98: 种植业基地 | E98: 公田镇 | F98: 横铺村 | G98: 栀子花种植 | H98: 新建 | I98: 黄田片 | J98: 2025.10.11 | K98: 20251230 | L98: 横铺村 | M98: 对20亩山地进行翻耕，种植栀子花，发展村集体产业。 | N98: 20 | O98: 5 | P98: 15 | Q98: 1 | R98: 68 | S98: 199 | T98: 0 | U98: 2 | V98: 3 | W98: 壮大村集体经济 | X98: 受益群众68户其中贫户数及防止返贫监测对象户数2户，脱贫人口数及防止返贫监测对象人口数3人，通过以工代赈，增加收入巩固脱贫成果
A99: 94 | B99: 产业发展 | C99: 生产项目 | D99: 种植业基地 | E99: 公田镇 | F99: 饶港村 | G99: 丁家茶叶基地后续管理 | H99: 续建 | I99: 五龙桥村茶园 | J99: 2025.5 | K99: 2025.11 | L99: 饶港村 | M99: 159.7亩茶园补苗、锄草、施肥、剪枝、园区日常维护、排水沟建设 | N99: 22 | O99: 20 | P99: 2 | Q99: 1 | R99: 35 | S99: 75 | T99: 0 | U99: 15 | V99: 65 | W99: 壮大村集体经济 | X99: 带动脱贫户和周边零散劳动力就业140人。
A100: 95 | B100: 产业发展 | C100: 生产项目 | D100: 种植业基地 | E100: 公田镇 | F100: 塘田村 | G100: 塘田村大棚产业基地藜蒿种植 | H100: 续建 | I100: 塘田村 | J100: 2025.6.18 | K100: 20251230 | L100: 塘田村 | M100: 培育，除草等日常管护 | N100: 80 | O100: 10 | P100: 70 | Q100: 1 | R100: 61 | S100: 138 | T100: 0 | U100: 8 | V100: 21 | W100: 土地流转，带动生产
A101: 96 | B101: 产业发展 | C101: 生产项目 | D101: 种植业基地 | E101: 公田镇 | F101: 铁山村 | G101: 蒌下黄精种植 | H101: 续建 | I101: 铺上组 | J101: 2025.5 | K101: 2025.9 | L101: 铁山村 | M101: 补种苗、除草等日常管护；40亩 | N101: 8 | O101: 8 | P101: 0 | Q101: 1 | R101: 38 | S101: 124 | U101: 7 | V101: 42 | W101: 壮大村集体经济 | X101: 受益群众124户其中贫户数及防止返贫监测对象户数7户，脱贫人口数及防止返贫监测对象人口数42人，通过以工代赈，增加收入巩固脱贫成果
A102: 97 | B102: 产业发展 | C102: 生产项目 | D102: 种植业基地 | E102: 公田镇 | F102: 五龙桥村 | G102: 小米辣椒种植 | H102: 续建 | I102: 全镇 | J102: 20250525 | K102: 2025.12 | L102: 五龙桥村 | M102: 承包荒田种植小米辣椒80余亩 | N102: 20 | O102: 5 | P102: 15 | W102: 土地流转，带动生产
A103: 98 | B103: 产业发展 | C103: 生产项目 | D103: 养殖业基地 | E103: 公田镇 | F103: 向佳村 | G103: 向佳村三淼猪场入股分红 | H103: 续建 | I103: 向佳村 | J103: 2025.6.5 | K103: 2025.8.20 | L103: 向佳村 | M103: 三淼猪场入股分红 | N103: 20 | O103: 20 | P103: 0 | W103: 收益分红，资产入股
A104: 99 | B104: 产业发展 | C104: 生产项目 | D104: 养殖业基地 | E104: 公田镇 | F104: 长安村 | G104: 联胜水产养殖 | H104: 续建 | I104: 向佳片 | J104: 2025.5 | K104: 2025.6 | L104: 长安村 | M104: 联胜水产养殖扩建15亩土地用于龙虾养殖 | N104: 10 | O104: 7 | P104: 3 | Q104: 1 | R104: 1140 | S104: 3670 | T104: 0 | U104: 50 | V104: 162 | W104: 壮大村集体经济 | X104: 受益向佳村增加村集体经济，通过以工代赈，增加部分家庭收入巩固脱贫成果
A105: 100 | B105: 产业发展 | C105: 生产项目 | D105: 种植业基地 | E105: 公田镇 | F105: 塘田村 | G105: 集中育秧基地（集体经济） | H105: 新建 | I105: 塘田村 | J105: 2025.6.18 | K105: 20251230 | L105: 塘田村 | M105: 集中育秧大棚基地占地面积40余亩，将种植经济作物，采用“村集体+合作社”的模式，实行五五分红，解决本村村民50人就业 | N105: 60 | O105: 50 | P105: 10 | Q105: 1 | R105: 301 | S105: 612 | T105: 0 | U105: 5 | V105: 16 | W105: 壮大村集体经济
A106: 101 | B106: 产业发展 | C106: 配套基础设施项目 | D106: 小型农田水利设施建设 | E106: 公田镇 | F106: 东淇村 | G106: 东淇港港磡护砌 | H106: 维修改造 | I106: 东淇村 | J106: 2025.03.22 | K106: 2025.04.26 | L106: 东淇村 | M106: 东淇港沿港90米进行河道清淤，港磡护砌。 | N106: 16 | O106: 10 | P106: 6 | Q106: 1 | R106: 265 | S106: 680 | T106: 0 | U106: 2 | V106: 6 | W106: 壮大村集体经济
A107: 102 | B107: 乡村建设行动 | C107: 农村基础设施 | D107: 农村道路建设（通村、通户路） | E107: 公田镇 | F107: 东新村 | G107: 梅树组道路维修 | H107: 维修改造 | I107: 东新村 | J107: 2025-08-12 | K107: 2025/12 | L107: 东新村 | M107: 梅树组1000米道路维修 | N107: 2.5 | O107: 2 | P107: 0.5 | Q107: 1 | R107: 25 | S107: 68 | T107: 0 | U107: 1 | V107: 3 | W107: 壮大村集体经济
A108: 103 | B108: 产业发展 | C108: 配套基础设施项目 | D108: 小型农田水利设施建设 | E108: 公田镇 | F108: 飞云村 | G108: 李山水库水利维修 | H108: 维修改造 | I108: 飞云村 | J108: 20250915 | K108: 2025.11.28 | L108: 飞云村 | M108: 将李山水库堤坡进行整修，然后进行硬化，并且对水库内淤泥进行清除，增加库容。 | N108: 15 | O108: 10 | P108: 5 | Q108: 1 | R108: 36 | S108: 88 | T108: 0 | U108: 3 | V108: 12 | W108: 壮大村集体经济
A109: 104 | B109: 产业发展 | C109: 生产项目 | D109: 种植业基地 | E109: 公田镇 | F109: 公田社区 | G109: 铁山源养生稻种植（易地搬迁） | H109: 续建 | I109: 公田社区 | J109: 2025.3.14 | K109: 2025.11.24 | L109: 公田社区 | M109: 养生稻种植 | N109: 2.4 | O109: 2 | P109: 0.4 | Q109: 1 | R109: 49 | S109: 156 | T109: 0 | U109: 5 | V109: 18 | W109: 壮大村集体经济
A110: 105 | B110: 产业发展 | C110: 生产项目 | D110: 种植业基地 | E110: 公田镇 | F110: 饶港村 | G110: 茶叶基地日常维护管理、培育（易地搬迁） | H110: 续建 | I110: 饶港村 | J110: 2025.3 | K110: 2025.12 | L110: 饶港村 | M110: 茶叶基地日常维护管理、培育 | N110: 4 | O110: 3 | P110: 1 | Q110: 1 | R110: 52 | S110: 166 | T110: 0 | U110: 2 | V110: 7 | W110: 壮大村集体经济
A111: 106 | B111: 产业发展 | C111: 生产项目 | D111: 种植业基地 | E111: 公田镇 | F111: 铁山村 | G111: 蒌下黄精种植（易地搬迁） | H111: 续建 | I111: 铁山村 | J111: 2025.5.25 | K111: 2025.7.15 | L111: 铁山村 | M111: 黄精种植 | N111: 11 | O111: 11 | P111: 0 | Q111: 1 | R111: 61 | S111: 199 | T111: 0 | U111: 1 | V111: 3 | W111: 壮大村集体经济
A112: 107 | B112: 乡村建设行动 | C112: 农村基础设施 | D112: 农村道路建设（通村、通户路） | E112: 公田镇 | F112: 五龙桥村 | G112: 曹联组道路拓宽 | H112: 改扩建 | I112: 五龙桥村 | J112: 20250702 | K112: 2025.12 | L112: 五龙桥村 | M112: 护坡片石护彻，长40米、高3米。 | N112: 3.5 | O112: 3 | P112: 0.5 | Q112: 1 | R112: 41 | S112: 120 | T112: 0 | U112: 2 | V112: 5 | W112: 壮大村集体经济
A113: 108 | B113: 产业发展 | C113: 配套基础设施项目 | D113: 小型农田水利设施建设 | E113: 公田镇 | F113: 向佳村 | G113: 全福片1.2.3.4组农田抗旱 | H113: 维修改造 | I113: 向佳村 | J113: 2025.8.10 | K113: 2025.10.28 | L113: 向佳村 | M113: 维护渠道1500多米及100米管道维护，添置抽水设备及人员用工。 | N113: 5 | O113: 5 | P113: 0 | Q113: 1 | R113: 38 | S113: 116 | T113: 0 | U113: 1 | V113: 3 | W113: 壮大村集体经济
A114: 109 | B114: 乡村建设行动 | C114: 农村基础设施 | D114: 农村道路建设（通村、通户路） | E114: 公田镇 | F114: 东淇村 | G114: 308线桥梁拓宽建设） | H114: 维修改造 | I114: 东淇村 | J114: 20250806 | K114: 20251220 | L114: 东淇村 | M114: 东淇港沿港190米进行河道清淤，港磡护砌 | N114: 10 | O114: 10 | P114: 0 | Q114: 1 | R114: 150 | S114: 480 | T114: 0 | U114: 18 | V114: 70 | W114: 改善生态环境.农田灌溉 | X114: 受益群众150户其中脱贫户数及防止返贫监测对象户数18户，脱贫人口数及防止返贫监测对象人口数70人，增加收入巩固脫贫成果。
A115: 110 | B115: 乡村建设行动 | C115: 农村基础设施 | D115: 农村道路建设（通村、通户路） | E115: 公田镇 | F115: 飞云村 | G115: 进出冷库道路拓宽硬化及门头更换工程 | H115: 维修改造 | I115: 飞云片 | J115: 2025.10.8 | K115: 2025.11.13 | L115: 飞云村 | M115: 将进出冷库约长30米宽2米水沟进行低涵处理并与现有3米道路一并硬化；同时将现有4米门头改装成5米，并安装铁门便于管理。 | N115: 15 | O115: 10 | P115: 5 | Q115: 1 | R115: 850 | S115: 3050 | T115: 1 | U115: 117 | V115: 380 | W115: 可冷藏保鲜各类蔬菜、水果、肉类 | X115: 全村850户农户生产种植的农副产品都可得到有效的保藏或保鲜，同时也可等待时机和时价升值，从而创造更高价值与收入
A116: 111 | B116: 产业发展 | C116: 配套基础设施项目 | D116: 小型农田水利设施建设 | E116: 公田镇 | F116: 港口村 | G116: 山塘清淤护砌（老区发展） | H116: 维修改造 | I116: 港口村佘家组 | J116: 2025.3 | K116: 2025.4 | L116: 港口村委会 | M116: 该项目为大干冲塘因低涵渗漏，无法蓄水，现对塘堤进行清淤护砌，长度约42米，高2.8米，厚0.1米，水域面积约为1.2亩清淤，塘堤整形及低涵维修，使其能够达到40余亩农田灌溉需求 | N116: 3.5 | O116: 3 | P116: 0.5 | Q116: 1 | R116: 36 | S116: 243 | T116: 1 | U116: 5 | V116: 17 | W116: 壮大村集体经济，改善农田灌溉，提升村民的生活质量。 | X116: 受益群众36户其中脱贫户数及防止返贫监测对象户数5户，脱贫人口数及防止返贫监测对象人口数17人，通过完善水利及农业基础设施，提升群众种粮积极性，增加收入巩固脱贫成果。
A117: 112 | B117: 乡村建设行动 | C117: 农村基础设施 | D117: 农村道路建设（通村、通户路） | E117: 公田镇 | F117: 公田社区 | G117: 姜家冲路渠道新建 | H117: 改造 | I117: 姜家冲 | J117: 202509 | K117: 202511 | L117: 公田居委会 | M117: 新建渠道500米，渠道开挖回填，U型槽，24墙护砌。 | N117: 8 | O117: 5 | P117: 3 | Q117: 2 | R117: 120 | S117: 850 | T117: 0 | U117: 15 | V117: 55 | W117: 壮大村集体经济，改善农田灌溉，提升村民的生活质量。 | X117: 受益群众120户其中脱贫户数及防止返贫监测对象户数15户，脱贫人口数及防止返贫监测对象人口数55人，通过以工代赈，增加收入巩固脱贫成果。
A118: 113 | B118: 产业发展 | C118: 配套基础设施项目 | D118: 小型农田水利设施建设 | E118: 公田镇 | F118: 横铺村 | G118: 横铺村铺兴组花坟坡塘维修 | H118: 维修改造 | I118: 横铺片 | J118: 2025.10.8 | K118: 2025.11.13 | L118: 横铺村 | M118: 横铺村铺兴组花坟坡塘清淤扩容水面面积新增扩容1亩、低涵重新改造、溢洪道疏通、塘堤加固长35米、高2.7米。 | N118: 11 | O118: 5 | P118: 6 | Q118: 1 | R118: 78 | S118: 320 | T118: 1 | U118: 6 | V118: 15 | W118: 改善种植、塘新增恢复灌溉面积5亩，改善灌面积10亩，新增蓄水能力600（立方米抗旱保灌，产业帮扶。 | X118: 受益群众78户其中贫户数及防止返贫监测对象户数6户，脱贫人口数及防止返贫监测对象人口数15人，通过以工代赈，增加收入巩固脱贫成果
A119: 114 | B119: 产业发展 | C119: 配套基础设施项目 | D119: 小型农田水利设施建设 | E119: 公田镇 | F119: 向佳村 | G119: 杨家组门前生活塘维修 | H119: 改造 | I119: 杨家组 | J119: 205.08.25 | K119: 2025.09.15 | L119: 向佳村 | M119: 水塘面积350平米.塘底清污硬化.塘堤长25米.宽21米加固硬化 | N119: 6.5 | O119: 5 | P119: 1.5 | Q119: 1 | R119: 22 | S119: 69 | T119: 0 | U119: 1 | V119: 1 | W119: 改善村民生产生活用水.提升村民的生活质量 | X119: 受益群众22户其中脱贫户户1户1人，改善农民生活质量.提高农民产业发展.
A120: 115 | B120: 产业发展 | C120: 加工流通项目 | D120: 加工业 | E120: 公田镇 | F120: 饶港村 | G120: 茶叶加工厂房建设 | H120: 续建 | I120: 饶港村 | J120: 2025.10.6 | K120: 20251230 | L120: 饶港村 | M120: 新建茶叶加工厂房面积0.6亩，揉茶机、茶叶杀青机、烘干机等茶叶加工设备购置 | N120: 55 | O120: 45 | P120: 10 | Q120: 1 | R120: 469 | S120: 1104 | T120: 1 | U120: 31 | V120: 48 | W120: 车间建设带动当地劳动力用工，壮大村集体经济。 | X120: 鼓励脱贫（监测）人员种植茶叶，增加收入途经，巩固脱贫成效。
A121: 116 | B121: 产业发展 | C121: 配套基础设施项目 | D121: 小型农田水利设施建设 | E121: 公田镇 | F121: 向佳村 | G121: 全福片港渠清淤、维护 | H121: 抗旱 | I121: 向佳村 | J121: 205.06.15 | K121: 2025.07.10 | L121: 向佳村 | M121: 维修港渠1.6公里，清淤及维护。 | N121: 6 | O121: 5 | P121: 1 | Q121: 1 | R121: 1040 | S121: 3670 | T121: 1 | U121: 50 | V121: 152 | W121: 增强抗旱规模力度，增加村民收入，增强集体经济发展 | X121: 受益群众1040户其中脱贫户50户152人，改善农民生活质量.提高农民产业发展.
A122: 117 | B122: 产业发展 | C122: 生产项目 | D122: 养殖业项目 | E122: 鹿角区域发展服务中心 | F122: 中心所有村 | G122: 产业奖补 | H122: 新建 | I122: 中心所有村 | J122: 2025.5.15 | K122: 2025.7.10 | L122: 鹿角区域发展服务中心 | M122: 中心所有监测户和脱贫户庭院经济产业奖补 | N122: 19.19 | O122: 19.19 | P122: 0 | Q122: 3 | R122: 144 | S122: 398 | T122: 0 | U122: 144 | V122: 398 | W122: 鹿角区域发展服务中心所有脱贫户监测庭院经济产业奖补， 带动脱贫户监测发展庭院经济增收。 | X122: 带动生产
A123: 118 | B123: 产业发展 | C123: 生产项目 | D123: 养殖业项目奖补 | E123: 鹿角区域发展服务中心 | F123: 中心所有村 | G123: 产业奖补 | H123: 新建 | I123: 中心所有村 | J123: 2025.5.15 | K123: 2025.7.10 | L123: 鹿角区域发展服务中心 | M123: 中心所有监测户和脱贫户庭院经济产业奖补 | N123: 6 | O123: 6 | P123: 0 | Q123: 3 | R123: 144 | S123: 398 | T123: 0 | U123: 144 | V123: 398 | W123: 鹿角区域发展服务中心所有脱贫户监测庭院经济产业奖补， 带动脱贫户监测发展庭院经济增收。 | X123: 带动生产
A124: 119 | B124: 乡村建设行动 | C124: 农村基础设施 | D124: 产业路、资源路、旅游路建设 | E124: 鹿角区域发展服务中心 | F124: 荣湾湖村 | G124: 大成片渔池产业道路硬化 | H124: 新建 | I124: 荣湾湖村大成片 | J124: 2025.5.15 | K124: 2025.6.20 | L124: 鹿角区域发展服务中心 | M124: 大成片渔池产业道路硬化长300米，宽3.5米，C30混凝土硬化20公分厚 | N124: 5 | O124: 5 | P124: 0 | Q124: 1 | R124: 43 | S124: 115 | T124: 0 | U124: 2 | V124: 5 | W124: 大成片渔池产业道路硬化长300米、宽3.5米C30混凝土硬化20公分厚，带动产业发展。 | X124: 带动生产
A125: 120 | B125: 产业发展 | C125: 配套基础设施项目 | D125: 小型农田水利设施建设 | E125: 鹿角区域发展服务中心 | F125: 荣湾湖村 | G125: 抗旱水井 | H125: 新建 | I125: 荣湾湖村大成片十组、孙坞片六组、高峰片一组 | J125: 2025.7.12 | K125: 2025.7.19 | L125: 鹿角区域发展服务中心 | M125: 保持水稻耕种，大成片十组、孙坞片六组（2）、高峰片一组共四口水井，用于水稻灌溉。 | N125: 5 | O125: 5 | P125: 0 | Q125: 1 | R125: 156 | S125: 427 | T125: 0 | U125: 10 | V125: 23 | W125: 保持水稻耕种，大成片十组、孙坞片六组（2）、高峰片一组共四口水井，用于水稻灌溉。 | X125: 带动生产
A126: 121 | B126: 产业发展 | C126: 配套基础设施项目 | D126: 小型农田水利设施建设 | E126: 鹿角区域发展服务中心 | F126: 鹿角村 | G126: 鹿角片付家冲童家塘清淤维修 | H126: 新建 | I126: 鹿角村付家冲 | J126: 2025.6.2 | K126: 2025.7.13 | L126: 鹿角区域发展服务中心 | M126: 鹿角村付家冲童家塘水面面积约7亩，进行山塘清淤维修、护坡、护栏等基础设施建设 | N126: 12 | O126: 5 | P126: 7 | Q126: 1 | R126: 33 | S126: 96 | T126: 0 | U126: 5 | V126: 13 | W126: 鹿角片付家冲童家塘7亩水面清淤维修，解决鹿角村鹿角片六组组屋场三十多亩水田灌溉以及其他农业用水。 | X126: 带动生产
A127: 122 | B127: 产业发展 | C127: 生产项目 | D127: 种殖业项目 | E127: 鹿角区域发展服务中心 | F127: 鹿角村 | G127: 金盆柚种植项目（集体经济） | H127: 新建 | I127: 鹿角村 | J127: 2025.7.2 | K127: 2025.12.20 | L127: 鹿角区域发展服务中心 | M127: 村收回集体林场，开垦面积约300亩，总投资约130万种植金盆柚；金盆柚种植由村集体、岳阳志存种植有限公司和杨茂片村民三方共同出资，村集体占股10%，岳阳志存种植有限公司占股70%；杨茂片村民占股20%。金盆柚种植基地四年后挂果成熟出售 | N127: 130 | O127: 50 | P127: 80 | Q127: 1 | R127: 82 | S127: 203 | T127: 0 | U127: 6 | V127: 15 | W127: 村收回集体林场300亩，金盆柚种植300亩，项目总投资约130万元 | X127: 带动生产
A128: 123 | B128: 产业发展 | C128: 配套基础设施项目 | D128: 小型农田水利设施建设 | E128: 鹿角区域发展服务中心 | F128: 鹿角村 | G128: 抗旱水井新建 | H128: 新建 | I128: 鹿角村杨茂片、鹿角片、济美片 | J128: 2025.7.10 | K128: 2025.7.22 | L128: 鹿角区域发展服务中心 | M128: 保持水稻耕种，杨茂片、鹿角片、济美片共四口水井新建，用于水稻灌溉。 | N128: 5 | O128: 5 | P128: 0 | Q128: 1 | R128: 132 | S128: 389 | T128: 0 | U128: 9 | V128: 22 | W128: 保持水稻耕种，杨茂片、鹿角片、济美片共四口水井新建，用于水稻灌溉。 | X128: 带动生产
A129: 124 | B129: 产业发展 | C129: 生产项目 | D129: 种植业基地 | E129: 麻塘街道 | F129: 东风村 | G129: 东风村水稻基地抗旱渠道改建 | H129: 新建 | I129: 东风村 | J129: 2025-05-01 | K129: 2025-08-01 | L129: 东风村村委会 | M129: 东风垸水稻基地抗旱渠道新建（长200米宽0.5米） | N129: 7 | O129: 7 | P129: 0 | Q129: 1 | R129: 36 | S129: 120 | T129: 1 | U129: 3 | V129: 9 | W129: 改善农田灌溉条件 | X129: 直接受益
A130: 125 | B130: 产业发展 | C130: 生产项目 | D130: 种植业基地 | E130: 麻塘街道 | F130: 东风村 | G130: 瓜蒌子基地改造扩建 | H130: 新建 | I130: 东风村 | J130: 2025-05-02 | K130: 2025-08-02 | L130: 东风村村委会 | M130: 瓜蒌子基地打100米深水井一口、新建水塔一座、安装水管 | N130: 3 | O130: 3 | P130: 0 | Q130: 1 | R130: 64 | S130: 200 | T130: 1 | U130: 3 | V130: 8 | W130: 改善农田灌溉条件 | X130: 直接受益
A131: 126 | B131: 产业发展 | C131: 生产项目 | D131: 种植业基地 | E131: 麻塘街道 | F131: 金垅村 | G131: 金垅村香莲种植基地项目 | H131: 新建 | I131: 金垅村 | J131: 2025-05-03 | K131: 2025-08-03 | L131: 金垅村村委会 | M131: 基地购置旋耕机1台，肥料一批 | N131: 10 | O131: 10 | P131: 0 | Q131: 1 | R131: 17 | S131: 60 | T131: 0 | U131: 5 | V131: 17 | W131: 增加集体经济收入 | X131: 直接受益
A132: 127 | B132: 产业发展 | C132: 生产项目 | D132: 产业奖补 | E132: 麻塘街道 | F132: 麻塘街道办事处各村 | G132: 脱贫户、监测户产业奖补 | H132: 新建 | I132: 麻塘街道办事处各村 | J132: 2025.3.12 | K132: 2025.9.20 | L132: 麻塘街道办事处 | M132: 对有能力、有意愿参加产业发展的脱贫户、监测户实施产业奖补 | N132: 53.24 | O132: 53.24 | P132: 0 | Q132: 7 | R132: 300 | S132: 1100 | T132: 1 | U132: 300 | V132: 1100 | W132: 通过合作社加农户合作模式带动增产增收 | X132: 直接受益
A133: 128 | B133: 产业发展 | C133: 配套基础设施项目 | D133: 小型农田水利设施建设 | E133: 麻塘街道 | F133: 麻塘村 | G133: 麻塘村新建抗旱深水井项目 | H133: 新建 | I133: 四新水库、大塘水库 | J133: 2025-09-01 | K133: 2025-10-01 | L133: 麻塘村村委会 | M133: 新钻2口深水井，安装水电管网及深水泵 | N133: 7 | O133: 5 | P133: 2 | Q133: 1 | R133: 450 | S133: 1523 | T133: 0 | U133: 5 | V133: 13 | W133: 改善农田灌溉条件 | X133: 直接受益
A134: 129 | B134: 产业发展 | C134: 生产项目 | D134: 发展集体经济 | E134: 麻塘街道 | F134: 麻塘村 | G134: 麻塘村入股湖南德利亨新材料科技有限公司分红项目 | H134: 新建 | I134: 麻塘村 | J134: 2025-06-01 | K134: 2025-06-01 | L134: 麻塘村村委会 | M134: 投资50万元入股分红 | N134: 50 | O134: 50 | P134: 0 | Q134: 1 | R134: 66 | S134: 200 | T134: 0 | U134: 15 | V134: 53 | W134: 增加集体经济收入 | X134: 直接受益
A135: 130 | B135: 产业发展 | C135: 配套基础设施项目 | D135: 小型农田水利设施建设 | E135: 麻塘街道 | F135: 东风村 | G135: 东风村抗旱设施建设项目 | H135: 新建 | I135: 东风村 | J135: 2025-07-27 | K135: 2025-09-30 | L135: 东风村村委会 | M135: 新建抗旱井一口，机埠更换抽水设备一套，架设电线约300米 | N135: 6 | O135: 6 | P135: 0 | Q135: 1 | R135: 63 | S135: 200 | T135: 1 | U135: 12 | V135: 38 | W135: 改善农田灌溉条件 | X135: 直接受益
A136: 131 | B136: 产业发展 | C136: 配套基础设施项目 | D136: 小型农田水利设施建设 | E136: 麻塘街道 | F136: 金垅村 | G136: 金垅村粮食监测基地抗旱设施建设项目 | H136: 改建 | I136: 金垅村 | J136: 2025-07-27 | K136: 2025-09-30 | L136: 金垅村村委会 | M136: 机埠（3座）更换部分设备及安装临时抽水设备3套，安装电缆约200米. | N136: 5 | O136: 4 | P136: 1 | Q136: 1 | R136: 68 | S136: 200 | T136: 0 | U136: 8 | V136: 30 | W136: 改善农田灌溉条件 | X136: 直接受益
A137: 132 | B137: 产业发展 | C137: 配套基础设施项目 | D137: 生产路 | E137: 麻塘街道 | F137: 原种场 | G137: 茶园道路硬化 | H137: 新建 | I137: 原种场 | J137: 2025-07-27 | K137: 2025-09-30 | L137: 原种场 | M137: 改善原种场眉山韵茶园基础设施。投入10万元，全长400米，宽3米，厚度20公分。 | N137: 10 | O137: 10 | P137: 0 | Q137: 1 | R137: 17 | S137: 60 | T137: 0 | U137: 2 | V137: 7 | W137: 改善生产出行条件 | X137: 直接受益
A138: 133 | B138: 产业发展 | C138: 配套基础设施项目 | D138: 小型农田水利设施建设 | E138: 麻塘街道 | F138: 洞庭村 | G138: 洞庭村铁庄组山塘清淤护砌 | H138: 新建 | I138: 铁庄组 | J138: 2025.09 | K138: 2025.11 | L138: 洞庭村 | M138: 山塘清淤约4亩、片石护砌约50立方米 | N138: 8 | O138: 5 | P138: =N138-O138 -> 3 | Q138: 1 | R138: 60 | S138: 190 | T138: 0 | U138: 11 | V138: 40 | W138: 改善稻田灌溉条件，使农户增产增收。 | X138: 直接受益
A139: 134 | B139: 产业发展 | C139: 配套基础设施项目 | D139: 小型农田水利设施建设 | E139: 麻塘街道 | F139: 麻布山村 | G139: 永和片团结组流家塘维修项目 | H139: 维修 | I139: 麻布山村 永和片团结组 | J139: 20250717 | K139: 2025.09 | L139: 麻布山村 | M139: 山塘清淤转运3200m³ | N139: 6 | O139: 5 | P139: 1 | Q139: 1 | R139: 2 | S139: 7 | T139: 0 | U139: 0 | V139: 0 | W139: 改善农田灌溉条件 | X139: 直接受益
A140: 135 | B140: 乡村建设行动 | C140: 农村基础设施 | D140: 农村道路建设（通村、通户路） | E140: 麻塘街道 | F140: 麻布山村 | G140: 永和片团结组地质灾害治理项目 | H140: 新建 | I140: 麻布山村永和片团结、友爱、四同组组 | J140: 2025.08 | K140: 2025.09 | L140: 麻布山村 | M140: 地质灾害治理200m，开挖转运土方3600m³ | N140: 12 | O140: 3 | P140: 9 | Q140: 1 | R140: 5 | S140: 17 | T140: 0 | U140: 0 | V140: 0 | W140: 解决村民住房安全隐患 | X140: 直接受益
A141: 136 | B141: 乡村建设行动 | C141: 农村基础设施 | D141: 农村道路建设（通村、通户路） | E141: 麻塘街道 | F141: 居委会 | G141: 麻塘渔场繁殖一组道路硬化 | H141: 新建 | I141: 麻塘繁殖一组 | J141: 2025.08 | K141: 2025.09 | L141: 麻塘渔场 | M141: 路面长400米、宽3米 | N141: 11 | O141: 10 | P141: 1 | Q141: 1 | R141: 24 | S141: 70 | T141: 0 | U141: 2 | V141: 6 | W141: 改善群众出行条件 | X141: 直接受益
A142: 137 | B142: 产业发展 | C142: 配套基础设施项目 | D142: 小型农田水利设施建设 | E142: 麻塘街道 | F142: 东风村 | G142: 新建各公组水渠项目 | H142: 新建 | I142: 横塘片 | J142: 2025.09 | K142: 2025.11 | L142: 东风村 | M142: 新建水渠长200米，宽0.4米，高0.5米 | N142: 7 | O142: 7 | P142: 0 | Q142: 1 | R142: 46 | S142: 128 | T142: 1 | U142: 4 | V142: 15 | W142: 改善稻田灌溉条件，使农户增产增收。 | X142: 直接受益
A143: 138 | B143: 乡村建设行动 | C143: 农村基础设施 | D143: 农村道路建设（通村、通户路） | E143: 麻塘街道 | F143: 麻塘村 | G143: 石子山抗战路（老区发展） | H143: 新建 | I143: 石子山 | J143: 2025.9.20 | K143: 2025.10.30 | L143: 麻塘村 | M143: 2400米道路基础建设：铺设石子、平整、压实 | N143: 3.00 | O143: 3.00 | P143: 0 | Q143: 1 | R143: 451 | S143: 1543 | T143: 0 | U143: 25 | V143: 78 | W143: 改善生产条件、促进增收 | X143: 直接受益
A144: 139 | B144: 产业发展 | C144: 生产项目 | D144: 种植业基地 | E144: 毛田镇 | F144: 相思村 | G144: 黄精种植 | H144: 改建 | I144: 相思村 | J144: 2025.2 | K144: 2025.12 | L144: 毛田镇 | M144: 10亩黄精种植，土地流转，翻耕种植人工费用，种苗，肥料，农膜、遮阳网、病虫防治等。 | N144: 8 | O144: 8 | P144: 0 | Q144: 1 | R144: 832 | S144: 3049 | T144: 1 | U144: 65 | V144: 195 | W144: 发展壮大产业项目，提高集体经济收入
A145: 140 | B145: 乡村建设行动 | C145: 农村基础设施 | D145: 农村道路建设（通村、通户路） | E145: 毛田镇 | F145: 黄道村 | G145: 甘云公路黄道村段拓宽升级项目 | H145: 新建 | I145: 黄道村 | J145: 2025.2 | K145: 2025.12 | L145: 毛田镇 | M145: 甘云路黄道村段4.9公里， 裁弯切直土石方、 浆砌石堪、 管道埋设、 破路平整、 沿线其他设施完善等。 | N145: 13 | O145: 13 | P145: 0 | Q145: 1 | R145: 629 | S145: 2249 | T145: 1 | U145: 46 | V145: 126 | W145: 完善道路设施，方便群众出行
A146: 141 | B146: 产业发展 | C146: 生产项目 | D146: 种植业基地 | E146: 毛田镇 | F146: 黄道村 | G146: 黄茶产业基地项目 | H146: 改建 | I146: 黄道村 | J146: 2025.2 | K146: 2025.12 | L146: 毛田镇 | M146: 110亩黄茶基地维护，肥料、病虫防治，人工，基地道路维修 | N146: 10 | O146: 10 | P146: 0 | Q146: 1 | R146: 629 | S146: 2249 | T146: 1 | U146: 46 | V146: 126 | W146: 发展壮大产业项目，提高集体经济收入
A147: 142 | B147: 产业发展 | C147: 生产项目 | D147: 种植业基地 | E147: 毛田镇 | F147: 白若村 | G147: 白若金稻水稻种植 | H147: 改扩建 | I147: 白若村 | J147: 2025.2 | K147: 2025.12 | L147: 毛田镇 | M147: 480亩水稻种植，包括种子，薄模，软盘，胶条，化肥，杀草药，耕田机，杂工等。 | N147: 8 | O147: 8 | P147: 0 | Q147: 1 | R147: 750 | S147: 3100 | T147: 1 | U147: 115 | V147: 475 | W147: 发展壮大产业项目，提高集体经济收入
A148: 143 | B148: 产业发展 | C148: 生产项目 | D148: 加工厂建设 | E148: 毛田镇 | F148: 李塅村 | G148: 众诚发艺项目（集体经济） | H148: 改建 | I148: 李塅村 | J148: 2025.2 | K148: 2025.12 | L148: 毛田镇 | M148: 众诚发艺假发厂新增车间扩大建设，扩大规模，利用村里现有空闲地，在原假发厂边可以扩大建设300平方左右，可增加村集体经济收入15万元左右 | N148: 50 | O148: 50 | P148: 0 | Q148: 1 | R148: 180 | S148: 860 | T148: 1 | U148: 25 | V148: 95 | W148: 发展壮大产业项目，提高集体经济收入
A149: 144 | B149: 乡村建设行动 | C149: 农村基础设施 | D149: 农村道路建设（通村、通户路） | E149: 毛田镇 | F149: 李塅村 | G149: 棉花基地产业路建设 | H149: 改建 | I149: 李塅村 | J149: 2025.2 | K149: 2025.12 | L149: 毛田镇 | M149: 600米产业路的基础开挖，土地平整。 | N149: 3 | O149: 3 | P149: 0 | Q149: 1 | R149: 850 | S149: 3086 | T149: 1 | U149: 78 | V149: 223 | W149: 完善道路设施，方便群众出行
A150: 145 | B150: 产业发展 | C150: 生产项目 | D150: 种植业基地 | E150: 毛田镇 | F150: 李塅村 | G150: 中药材种植 | H150: 改建 | I150: 李塅村 | J150: 2025.2 | K150: 2025.12 | L150: 毛田镇 | M150: 中药村种植20亩，土地流转，白芨种苗，黄精种人工。 | N150: 10 | O150: 10 | P150: 0 | Q150: 1 | R150: 850 | S150: 3086 | T150: 1 | U150: 78 | V150: 223 | W150: 发展壮大产业项目，提高集体经济收入
A151: 146 | B151: 产业发展 | C151: 生产项目 | D151: 种植业基地 | E151: 毛田镇 | F151: 中兴村 | G151: 艾叶种植 | H151: 改建 | I151: 中兴村 | J151: 2025.2 | K151: 2025.12 | L151: 毛田镇 | M151: 20亩艾叶种植，土地流转，挖机平整，土地翻耕，种苗，人工，肥料，维护除草，机耕路维修。 | N151: 12 | O151: 12 | P151: 0 | Q151: 1 | R151: 260 | S151: 690 | T151: 1 | U151: 42 | V151: 142 | W151: 发展壮大产业项目，提高集体经济收入
A152: 147 | B152: 产业发展 | C152: 生产项目 | D152: 种植业基地 | E152: 毛田镇 | F152: 芭蕉村 | G152: 芭蕉村油茶基地建设 | H152: 改建 | I152: 芭蕉村 | J152: 2025.2 | K152: 2025.12 | L152: 毛田镇 | M152: 80亩油茶基地开垦种植，包括翻垦，施肥，培苗，除草，灌溉等 | N152: 14 | O152: 14 | P152: 0 | Q152: 1 | R152: 845 | S152: 3486 | T152: 1 | U152: 98 | V152: 283 | W152: 发展壮大产业项目，提高集体经济收入
A153: 148 | B153: 乡村建设行动 | C153: 农村基础设施 | D153: 农村道路建设（通村、通户路） | E153: 毛田镇 | F153: 芭蕉村 | G153: 下屋组断头路建设 | H153: 改扩建 | I153: 芭蕉村 | J153: 2025.2 | K153: 2025.12 | L153: 毛田镇 | M153: 200米长， 5米宽的断头路硬化 | N153: 7 | O153: 7 | P153: 0 | Q153: 1 | R153: 845 | S153: 3486 | T153: 1 | U153: 98 | V153: 283 | W153: 完善道路设施，方便群众出行
A154: 149 | B154: 乡村建设行动 | C154: 农村基础设施 | D154: 农村道路建设（通村、通户路） | E154: 毛田镇 | F154: 西台村 | G154: 西台村田花组至云塅公路维修 | H154: 改建 | I154: 西台村 | J154: 2025.2 | K154: 2025.12 | L154: 毛田镇 | M154: 4.2公里路有5处路面或路基等水毁损害点维修 | N154: 5 | O154: 5 | P154: 0 | Q154: 1 | R154: 400 | S154: 1900 | T154: 1 | U154: 3 | V154: 89 | W154: 完善道路设施，方便群众出行
A155: 150 | B155: 产业发展 | C155: 生产项目 | D155: 种植业基地 | E155: 毛田镇 | F155: 西台村 | G155: 西台村优质水稻种植 | H155: 改建 | I155: 西台村 | J155: 2025.2 | K155: 2025.12 | L155: 毛田镇 | M155: 560亩优质水稻种植，包括种子，购育秧软盘，购薄膜，秧田机械平整工资。 | N155: 13 | O155: 13 | P155: 0 | Q155: 1 | R155: 27 | S155: 120 | T155: 1 | U155: 4 | V155: 11 | W155: 发展壮大产业项目，提高集体经济收入
A156: 151 | B156: 产业发展 | C156: 生产项目 | D156: 种植业基地 | E156: 毛田镇 | F156: 英桥村 | G156: 黄精种植 | H156: 改建 | I156: 英桥村 | J156: 2025.2 | K156: 2025.12 | L156: 毛田镇 | M156: 依托现有140亩黄桃基地，在现有黄桃基地上实现黄精种植80亩，包括种苗，肥料、病虫防治，锄草，人工等。 | N156: 21 | O156: 21 | P156: 0 | Q156: 1 | R156: 48 | S156: 161 | T156: 1 | U156: 7 | V156: 18 | W156: 发展壮大产业项目，提高集体经济收入
A157: 152 | B157: 乡村建设行动 | C157: 农村基础设施 | D157: 农村供水保障设施建设 | E157: 毛田镇 | F157: 英桥村 | G157: 英桥村桃洞片大条组安全饮水工程 | H157: 改建 | I157: 英桥村 | J157: 2025.2 | K157: 2025.12 | L157: 毛田镇 | M157: 建深水井，蓄水池， 铺设供水管道 | N157: 5 | O157: 5 | P157: 0 | Q157: 1 | R157: 20 | S157: 73 | T157: 1 | U157: 5 | V157: 16 | W157: 解决安全饮水，保障居民用水
A158: 153 | B158: 产业发展 | C158: 生产项目 | D158: 种植业基地 | E158: 毛田镇 | F158: 卢塅村 | G158: 卢塅村棉花种植 | H158: 改建 | I158: 卢塅村 | J158: 2025.2 | K158: 2025.12 | L158: 毛田镇 | M158: 开垦荒地 60 亩种植棉花开垦荒地 60 亩种植棉花（土地平整、翻耕、深松、土地改良、灌溉沟渠修整，化肥农药地膜购买，种子消毒，播种采棉加工人工等） | N158: 10 | O158: 10 | P158: 0 | Q158: 1 | R158: 1098 | S158: 4863 | T158: 1 | U158: 78 | V158: 263 | W158: 发展壮大产业项目，提高集体经济收入
A159: 154 | B159: 产业发展 | C159: 生产项目 | D159: 种植业基地 | E159: 毛田镇 | F159: 南冲村 | G159: 界头片茶叶种植 | H159: 改建 | I159: 南冲村 | J159: 2025.2 | K159: 2025.12 | L159: 毛田镇 | M159: 30亩茶叶种植，包括抛荒土地挖机开垦 ，人工清沟整垅，栽种茶苗，除草施肥，挖机修路，人工挖沟安装灌溉用水管道等。 | N159: 11 | O159: 11 | P159: 0 | Q159: 1 | R159: 58 | S159: 236 | T159: 1 | U159: 8 | V159: 33 | W159: 发展壮大产业项目，提高集体经济收入
A160: 155 | B160: 乡村建设行动 | C160: 农村基础设施 | D160: 农村道路建设（通村、通户路） | E160: 毛田镇 | F160: 南冲村 | G160: 南冲村界头片老屋组产业路墈护砌 | H160: 改建 | I160: 南冲村 | J160: 2025.2 | K160: 2025.12 | L160: 毛田镇 | M160: 0.15公里路墈护砌 | N160: 5 | O160: 5 | P160: 0 | Q160: 1 | R160: 26 | S160: 98 | T160: 1 | U160: 3 | V160: 12 | W160: 完善道路设施，方便群众出行
A161: 156 | B161: 产业发展 | C161: 配套基础设施项目 | D161: 小型农田水利设施建设 | E161: 毛田镇 | F161: 南冲村 | G161: 毛田水库渠道维修 | H161: 改建 | I161: 南冲村 | J161: 2025.2 | K161: 2025.12 | L161: 毛田镇 | M161: 用于毛田镇饮用水源毛田水库东、西渠道维修，全长1000米 | N161: 5 | O161: 5 | P161: 0 | Q161: 1 | R161: 531 | S161: 1540 | T161: 1 | U161: 49 | V161: 148 | W161: 完善渠道基础设施，优化水利功能
A162: 157 | B162: 乡村建设行动 | C162: 农村基础设施 | D162: 农村道路建设（通村、通户路） | E162: 毛田镇 | F162: 云山村 | G162: 云山村柏树组至红米洞公路拓宽硬化 | H162: 改建 | I162: 云山村 | J162: 2025.2 | K162: 2025.12 | L162: 毛田镇 | M162: 拓宽机耕路面到7米， 硬化路面6米宽2公里 | N162: 10 | O162: 10 | P162: 0 | Q162: 1 | R162: 200 | S162: 600 | T162: 1 | U162: 14 | V162: 28 | W162: 完善道路设施，方便群众出行
A163: 158 | B163: 产业发展 | C163: 生产项目 | D163: 种植业基地 | E163: 毛田镇 | F163: 云山村 | G163: 生姜种植 | H163: 改建 | I163: 云山村 | J163: 2025.2 | K163: 2025.12 | L163: 毛田镇 | M163: 30亩生姜种植基地开垦与种植，包括机耕路，人工，生姜种，土地流转，土地整理，排水系统。 | N163: 13 | O163: 13 | P163: 0 | Q163: 1 | R163: 300 | S163: 1000 | T163: 1 | U163: 50 | V163: 148 | W163: 发展壮大产业项目，提高集体经济收入
A164: 159 | B164: 乡村建设行动 | C164: 农村基础设施 | D164: 农村道路建设（通村、通户路） | E164: 毛田镇 | F164: 鸣山村 | G164: 鸣山村枫树组甘垅新修公路 | H164: 改扩建 | I164: 鸣山村 | J164: 2025.2 | K164: 2025.12 | L164: 毛田镇 | M164: 新修公路长1. 2公里 | N164: 6 | O164: 6 | P164: 0 | Q164: 1 | R164: 82 | S164: 362 | T164: 1 | U164: 7 | V164: 26 | W164: 完善道路设施，方便群众出行
A165: 160 | B165: 产业发展 | C165: 配套基础设施项目 | D165: 小型农田水利设施建设 | E165: 毛田镇 | F165: 鸣山村 | G165: 鸣山村枫树组长坡山塘维修 | H165: 改建 | I165: 鸣山村 | J165: 2025.2 | K165: 2025.12 | L165: 毛田镇 | M165: 山塘低涵改造、 清淤扩容、 堤坡护砌 | N165: 4 | O165: 4 | P165: 0 | Q165: 1 | R165: 96 | S165: 435 | T165: 1 | U165: 14 | V165: 42 | W165: 完善山塘渠道基础设施，优化水利功能
A166: 161 | B166: 产业发展 | C166: 生产项目 | D166: 种植业基地 | E166: 毛田镇 | F166: 鸣山村 | G166: 鸣山村茶山种植产业发展 | H166: 改建 | I166: 鸣山村 | J166: 2025.2 | K166: 2025.12 | L166: 毛田镇 | M166: 黄茶基地48亩维护管理，扩建20亩，土地流转，基地维护、施肥、病虫防治、抗旱、锄草、剪枝等，基地扩建20亩 | N166: 10 | O166: 10 | P166: 0 | Q166: 1 | R166: 621 | S166: 2864 | T166: 1 | U166: 90 | V166: 233 | W166: 发展壮大产业项目，提高集体经济收入
A167: 162 | B167: 产业发展 | C167: 生产项目 | D167: 种植业基地 | E167: 毛田镇 | F167: 道仁村 | G167: 道仁村金盆柚种植维护 | H167: 改建 | I167: 道仁村 | J167: 2025.2 | K167: 2025.12 | L167: 毛田镇 | M167: 40亩金盆柚种植，补苗，施肥，锄草，杀虫，自动灌溉设备维护等 | N167: 10 | O167: 10 | P167: 0 | Q167: 1 | R167: 136 | S167: 329 | T167: 1 | U167: 25 | V167: 87 | W167: 发展壮大产业项目，提高集体经济收入
A168: 163 | B168: 乡村建设行动 | C168: 农村基础设施 | D168: 农村道路建设（通村、通户路） | E168: 毛田镇 | F168: 道仁村 | G168: 道仁村道田线公路水毁公路维修 | H168: 改建 | I168: 道仁村 | J168: 2025.2 | K168: 2025.12 | L168: 毛田镇 | M168: 路面、 路基维修5公里 | N168: 5 | O168: 5 | P168: 0 | Q168: 1 | R168: 82 | S168: 238 | T168: 1 | U168: 29 | V168: 65 | W168: 完善道路设施，方便群众出行
A169: 164 | B169: 乡村建设行动 | C169: 农村基础设施 | D169: 农村道路建设（通村、通户路） | E169: 毛田镇 | F169: 小港村 | G169: 小港村安全饮水项目 | H169: 改建 | I169: 小港村 | J169: 2025.2 | K169: 2025.12 | L169: 毛田镇 | M169: 安全饮水工程，用于打深水井和蓄水池建设，铺设水管至屋场。 | N169: 20 | O169: 20 | P169: 0 | Q169: 1 | R169: 813 | S169: 2406 | T169: 1 | U169: 84 | V169: 215 | W169: 完善道路设施，方便群众出行
A170: 165 | B170: 产业发展 | C170: 生产项目 | D170: 种植业基地 | E170: 毛田镇 | F170: 小港村 | G170: 黄精种植基地维护项目 | H170: 改建 | I170: 小港村 | J170: 2025.2 | K170: 2025.12 | L170: 毛田镇 | M170: 80亩黄精中药材基地维护 | N170: 5 | O170: 5 | P170: 0 | Q170: 1 | R170: 813 | S170: 2406 | T170: 1 | U170: 84 | V170: 215 | W170: 发展壮大产业项目，提高集体经济收入
A171: 166 | B171: 产业发展 | C171: 生产项目 | D171: 种植业基地 | E171: 毛田镇 | F171: 小港村 | G171: 小港村金盆柚种植后续维护 | H171: 改建 | I171: 小港村 | J171: 2025.2 | K171: 2025.12 | L171: 毛田镇 | M171: 120亩金盆柚种植基地后续维护和管理，用于基地道路维护，清沟，灌溉用水，除草，施肥，修枝，除虫等维护工程。 | N171: 10 | O171: 10 | P171: 0 | Q171: 1 | R171: 813 | S171: 2406 | T171: 1 | U171: 84 | V171: 215 | W171: 发展壮大产业项目，提高集体经济收入
A172: 167 | B172: 产业发展 | C172: 生产项目 | D172: 种植业基地 | E172: 毛田镇 | F172: 孟城村 | G172: 孟城村黄茶基地维护 | H172: 改建 | I172: 孟城村 | J172: 2025.2 | K172: 2025.12 | L172: 毛田镇 | M172: 30亩黄茶基地维护与10亩扩种，包括开荒，人工，施肥，除草，灌溉等。 | N172: 10 | O172: 10 | P172: 0 | Q172: 1 | R172: 786 | S172: 2387 | T172: 1 | U172: 61 | V172: 194 | W172: 发展壮大产业项目，提高集体经济收入
A173: 168 | B173: 乡村建设行动 | C173: 农村基础设施 | D173: 农村道路建设（通村、通户路） | E173: 毛田镇 | F173: 孟城村 | G173: 孟城村文洞片大平组道路拓宽 | H173: 改建 | I173: 孟城村 | J173: 2025.2 | K173: 2025.12 | L173: 毛田镇 | M173: 300米水泥路硬化 | N173: 10 | O173: 10 | P173: 0 | Q173: 1 | R173: 188 | S173: 658 | T173: 1 | U173: 38 | V173: 134 | W173: 完善道路设施，方便群众出行
A174: 169 | B174: 产业发展 | C174: 生产项目 | D174: 种植业基地 | E174: 毛田镇 | F174: 毛田村 | G174: 金盆柚水果 种植基地建设 | H174: 改建 | I174: 毛田村 | J174: 2025.2 | K174: 2025.12 | L174: 毛田镇 | M174: 50亩金盆柚水果种植基地维护，包括人工，施肥，除草，灌溉，砌磡等。 | N174: 8 | O174: 8 | P174: 0 | Q174: 1 | R174: 894 | S174: 2553 | T174: 1 | U174: 62 | V174: 169 | W174: 发展壮大产业项目，提高集体经济收入
A175: 170 | B175: 乡村建设行动 | C175: 农村基础设施 | D175: 农村供水保障设施建设 | E175: 毛田镇 | F175: 毛田村 | G175: 毛田村毛田片安全饮水 | H175: 改建 | I175: 毛田村 | J175: 2025.2 | K175: 2025.12 | L175: 毛田镇 | M175: 建深水井一口， 维修供水管道800米 | N175: 5 | O175: 5 | P175: 0 | Q175: 1 | R175: 894 | S175: 2554 | T175: 1 | U175: 62 | V175: 169 | W175: 解决安全饮水，保障居民用水
A176: 171 | B176: 产业发展 | C176: 生产项目 | D176: 种植业基地 | E176: 毛田镇 | F176: 珠港村 | G176: 药材种植产业发展 | H176: 改建 | I176: 珠港村 | J176: 2025.2 | K176: 2025.12 | L176: 毛田镇 | M176: 种植中药材天麻20亩，包括土地流转，翻耕种植，购买种苗，肥料，农膜、遮阳网、病虫防治等。 | N176: 10 | O176: 10 | P176: 0 | Q176: 1 | R176: 185 | S176: 488 | T176: 1 | U176: 45 | V176: 150 | W176: 发展壮大产业项目，提高集体经济收入
A177: 172 | B177: 产业发展 | C177: 配套基础设施项目 | D177: 小型农田水利设施建设 | E177: 毛田镇 | F177: 珠港村 | G177: 珠港村九龙片青冲水库维修工程 | H177: 改建 | I177: 珠港村 | J177: 2025.2 | K177: 2025.12 | L177: 毛田镇 | M177: 清淤、 低涵卧管维修、 外坡护砌， 维修 | N177: 5 | O177: 5 | P177: 0 | Q177: 1 | R177: 300 | S177: 950 | T177: 1 | U177: 35 | V177: 102 | W177: 完善山塘基础设施，优化水利功能
A178: 173 | B178: 产业发展 | C178: 产业奖补 | D178: 产业奖补 | E178: 毛田镇 | F178: 毛田镇 | G178: 产业奖补 | H178: 改建 | I178: 毛田镇 | J178: 2025.2 | K178: 2025.12 | L178: 毛田镇 | M178: 用于“两有人员”、脱贫户和监测户的产业奖补 | N178: 103 | O178: 103 | P178: 0 | Q178: 17 | R178: 563 | S178: 2120 | T178: 17 | U178: 563 | V178: 2120 | W178: 通过给脱贫户，监测户发放鸡苗，增加收入
A179: 174 | B179: 产业发展 | C179: 生产项目 | D179: 种植业基地 | E179: 毛田镇 | F179: 毛田镇 | G179: 安置点后续资产管护 | H179: 改建 | I179: 毛田镇 | J179: 2025.2 | K179: 2025.12 | L179: 毛田镇 | M179: 用于全镇11个6户以上易地扶贫搬迁安置点后续资产维护与管理 | N179: 33.01 | O179: 33.01 | P179: 0 | Q179: 11 | R179: 117 | S179: 568 | T179: 11 | U179: 117 | V179: 568 | W179: 发展壮大产业项目，提高居民收入
A180: 175 | B180: 产业发展 | C180: 生产项目 | D180: 种植业基地 | E180: 毛田镇 | F180: 毛田镇 | G180: 八斗安置点后续资产管护（易地搬迁） | H180: 改建 | I180: 毛田镇 | J180: 2025.2 | K180: 2025.12 | L180: 毛田镇 | M180: 用于八斗安置点资产管护，涉及安置点范围内的艾叶种植基地维护、茶叶基地维护、艾叶加工车间相关附属配套建设。 | N180: 15 | O180: 15 | P180: 0 | Q180: 17 | R180: 78 | S180: 372 | T180: 17 | U180: 78 | V180: 372 | W180: 发展壮大产业项目，提高居民收入
A181: 176 | B181: 乡村建设行动 | C181: 农村基础设施（含产业配套基础设施） | D181: 农村道路建设（通村路、通户路、小型桥梁等） | E181: 毛田镇 | F181: 道仁村 | G181: 荷塘组公路塌方维修 | H181: 改建 | I181: 道仁村 | J181: 2025.11 | K181: 2025.12 | L181: 县农业农村局 | M181: 预埋100#高压涵洞20米、土方转运2000方、路面混泥土硬化200平方 | N181: 5 | O181: 5 | P181: 0 | Q181: 1 | R181: 28 | S181: 126 | T181: 1 | U181: 5 | V181: 24.00 | W181: 完善道路设施，方便群众出行 | X181: 安全出行
A182: 177 | B182: 产业发展 | C182: 生产项目 | D182: 种植业基地 | E182: 毛田镇 | F182: 道仁村 | G182: 水产养殖苗塘扩建 | H182: 扩建 | I182: 道仁村 | J182: 2025.11 | K182: 2025.12 | L182: 县农业农村局 | M182: 苗塘清淤扩容5亩、修筑堤坝50米、堤坝修建砖混结构挡土墙 | N182: 5 | O182: 5 | P182: 0 | Q182: 1 | R182: 12 | S182: 57 | T182: 1 | U182: 4 | V182: 22.00 | W182: 发展壮大产业项目，提高集体经济收入 | X182: 村集体增收，用于改善人居环境，及脱贫户等困难群体的救助
A183: 178 | B183: 产业发展 | C183: 配套基础设施项目 | D183: 小型农田水利设施建设 | E183: 毛田镇 | F183: 毛田村 | G183: 毛田片坡头组山塘维修 | H183: 改建 | I183: 毛田村 | J183: 2025.11 | K183: 2025.12 | L183: 县农业农村局 | M183: 3口饮用水山塘清淤 | N183: 5 | O183: 5 | P183: 0 | Q183: 1 | R183: 14 | S183: 65 | T183: 1 | U183: 3 | V183: 12.00 | W183: 完善山塘渠道基础设施，优化水利功能 | X183: 解决山塘蓄水安全和灌溉
A184: 179 | B184: 乡村建设行动 | C184: 农村基础设施 | D184: 农村供水保障设施建设 | E184: 毛田镇 | F184: 毛田村 | G184: 毛田片坡头组安全饮水工程 | H184: 新建 | I184: 毛田村 | J184: 2025.11 | K184: 2025.12 | L184: 县农业农村局 | M184: 新建过滤池，管道铺埋等 | N184: 10 | O184: 10 | P184: 0 | Q184: 1 | R184: 18 | S184: 72 | T184: 1 | U184: 2 | V184: 9.00 | W184: 解决安全饮水，保障居民用水 | X184: 方便用水
A185: 180 | B185: 产业发展 | C185: 配套基础设施项目 | D185: 小型农田水利设施建设 | E185: 毛田镇 | F185: 南冲村 | G185: 南冲片大屋组门口塘维修 | H185: 改建 | I185: 南冲村 | J185: 2025.11 | K185: 2025.12 | L185: 县农业农村局 | M185: 塘内清淤，塘磡片石护砌 | N185: 5 | O185: 5 | P185: 0 | Q185: 1 | R185: 15 | S185: 68 | T185: 1 | U185: 3 | V185: 14.00 | W185: 完善山塘渠道基础设施，优化水利功能 | X185: 解决山塘蓄水安全和灌溉
A186: 181 | B186: 乡村建设行动 | C186: 农村基础设施（含产业配套基础设施） | D186: 农村道路建设（通村路、通户路、小型桥梁等） | E186: 毛田镇 | F186: 芭蕉村 | G186: 下屋组石墈护砌 | H186: 改建 | I186: 芭蕉村 | J186: 2025.11 | K186: 2025.12 | L186: 县农业农村局 | M186: 104米长，7米高挡土墙 | N186: 13 | O186: 13 | P186: 0 | Q186: 1 | R186: 34 | S186: 156 | T186: 1 | U186: 6 | V186: 22.00 | W186: 完善道路设施，方便群众出行 | X186: 安全出行
A187: 182 | B187: 乡村建设行动 | C187: 农村基础设施 | D187: 农村供水保障设施建设 | E187: 毛田镇 | F187: 云山村 | G187: 云山村联合片柏树组安全饮水项目 | H187: 新建 | I187: 云山村 | J187: 2025.11 | K187: 2025.12 | L187: 县农业农村局 | M187: 水井扩容，加固，水管更换，铺设 | N187: 3 | O187: 3 | P187: 0 | Q187: 1 | R187: 15 | S187: 65 | T187: 1 | U187: 3 | V187: 12.00 | W187: 解决安全饮水，保障居民用水 | X187: 方便用水
A188: 183 | B188: 乡村建设行动 | C188: 农村基础设施 | D188: 农村供水保障设施建设 | E188: 毛田镇 | F188: 相思村 | G188: 相思村同乐片余家组安全饮水工程 | H188: 新建 | I188: 相思村 | J188: 2025.11 | K188: 2025.12 | L188: 县农业农村局 | M188: 新建蓄水池，过滤池，管道铺埋等 | N188: 2 | O188: 2 | P188: 0 | Q188: 1 | R188: 48 | S188: 162 | T188: 1 | U188: 4 | V188: 12.00 | W188: 解决安全饮水，保障居民用水 | X188: 方便用水
A189: 184 | B189: 乡村建设行动 | C189: 农村基础设施（含产业配套基础设施） | D189: 农村道路建设（通村路、通户路、小型桥梁等） | E189: 毛田镇 | F189: 中兴村 | G189: 中兴村中毛片公铺组公路拓宽护砌 | H189: 改建 | I189: 中兴村 | J189: 2025.11 | K189: 2025.12 | L189: 县农业农村局 | M189: 长29米，高2.6米，底宽1.5米，面宽0.6米 | N189: 2 | O189: 2 | P189: 0 | Q189: 1 | R189: 54 | S189: 225 | T189: 1 | U189: 13 | V189: 48.00 | W189: 完善道路设施，方便群众出行 | X189: 安全出行
A190: 185 | B190: 产业发展 | C190: 配套基础设施项目 | D190: 小型农田水利设施建设 | E190: 毛田镇 | F190: 黄道村 | G190: 黄道村爱国片李景山山塘护砌维修 | H190: 改建 | I190: 黄道村 | J190: 2025.11 | K190: 2025.12 | L190: 县农业农村局 | M190: 清淤,山塘护砌维修 | N190: 2 | O190: 2 | P190: 0 | Q190: 1 | R190: 17 | S190: 75 | T190: 1 | U190: 5 | V190: 16.00 | W190: 完善山塘渠道基础设施，优化水利功能 | X190: 解决山塘蓄水安全和灌溉
A191: 186 | B191: 产业发展 | C191: 配套基础设施项目 | D191: 小型农田水利设施建设 | E191: 荣家湾街道 | F191: 城东村 | G191: 城东村大冲片张家门前塘维修 | H191: 改建 | I191: 城东村 | J191: 2025-10-20 | K191: 2025-11-20 | L191: 城东村 | M191: 大冲片五组张家门前塘维修，塘面积5亩清淤0.5米深，塘堤护砌防漏。 | N191: 8 | O191: 8 | P191: 0 | Q191: 1 | R191: 21 | S191: 72 | T191: 1 | U191: 2 | V191: 4 | W191: 大冲片五组张家门前塘维修，塘面积5亩清淤0.5米深，塘堤护砌防漏；受益水田面积40亩，预计每亩增产100斤；受益群众21户72人，其中脱贫户2户4人。 | X191: 群众水稻种植受益，受益水稻面积40亩，预计每亩增产100斤。
A192: 187 | B192: 乡村建设行动 | C192: 农村基础设施 | D192: 农村道路建设（通村、通户路） | E192: 荣家湾街道 | F192: 城东村 | G192: 城东村群星片道路拓宽 | H192: 改建 | I192: 城东村 | J192: 2025-10-20 | K192: 2025-11-20 | L192: 城东村 | M192: 群星片一组通组道路1.2公里拓宽至4.5米。包括路基拓宽，路面硬化，硬化0.2米。 | N192: 28 | O192: 10 | P192: 18 | Q192: 1 | R192: 31 | S192: 106 | T192: 1 | U192: 3 | V192: 11 | W192: 群星片一组通组道路1.2公里拓宽至4.5米。包括路基拓宽，路面硬化，硬化0.2米；建成后加快农资流通速度，增加群众收入，解决群众出行安全问题，提升群众幸福䶠与获得感；受益人口31户106人，其中脱贫户3户11人。 | X192: 群众参与投工投劳增加收入，改建后解决群众出行安全问题，加快农资流通速度，增加收入。
A193: 188 | B193: 乡村建设行动 | C193: 农村基础设施 | D193: 农村道路建设（通村、通户路） | E193: 荣家湾街道 | F193: 大毛家湖渔场 | G193: 大毛家湖渔场孵化场道路硬化 | H193: 改建 | I193: 大毛家湖渔场 | J193: 2025-03-01 | K193: 2025-06-30 | L193: 大毛家湖渔场 | M193: 大毛家湖渔场孵化场道路硬化160米，硬化0.2米。 | N193: 6 | O193: 2 | P193: 4 | Q193: 1 | R193: 160 | S193: 605 | U193: 8 | V193: 19 | W193: 大毛家湖渔场孵化场道路硬化160米，硬化0.2米，解决群众出行安全问题，加快农资流通，增加收入。受益群众160户605人，其中脱贫户8户19人。 | X193: 群众参与投工投劳，增加收入。加快农资流通，增加收入。
A194: 189 | B194: 产业发展 | C194: 配套基础设施项目 | D194: 小型农田水利设施建设 | E194: 荣家湾街道 | F194: 东方村 | G194: 东方村泥家湖渠道修建 | H194: 改建 | I194: 东方村泥家湖 | J194: 2025-03-01 | K194: 2025-04-01 | L194: 东方村 | M194: 东方村泥家湖渠道修建全长268米、宽1米，深80公分。 | N194: 6 | O194: 4 | P194: 2 | Q194: 1 | R194: 30 | S194: 102 | U194: 0 | V194: 0 | W194: 东方村泥家湖渠道修建全长268米、宽1米，深80公分，切实解决村民鱼池菜地灌溉困难。总投资55000万元，受益群众30户102人脱贫户1户3人。 | X194: 群众鱼池引水，菜地灌溉受益。
A195: 190 | B195: 产业发展 | C195: 配套基础设施项目 | D195: 小型农田水利设施建设 | E195: 荣家湾街道 | F195: 六合垸村 | G195: 六合垸村沿河片灌溉水渠建设 | H195: 改建 | I195: 六合垸村沿河片 | J195: 2025.1.1 | K195: 2025.3.30 | L195: 六合垸村 | M195: 渠道长700米，宽0.5米，灌溉水亩420亩。 | N195: 13 | O195: 2 | P195: 11 | Q195: 1 | R195: 76 | S195: 372 | U195: 21 | V195: 62 | W195: 改建沿河片渠道，长700米，宽0.5米；受益灌溉水田面积420亩；受益群众76户372人，其中脱贫户21户62人。 | X195: 群众水稻种植受益，预计亩增产100斤。
A196: 191 | B196: 产业发展 | C196: 配套基础设施项目 | D196: 小型农田水利设施建设 | E196: 荣家湾街道 | F196: 欣荣村 | G196: 欣荣村东庄片蜈蚣塘清淤维修 | H196: 改建 | I196: 欣荣村 | J196: 2025-03-01 | K196: 2025-04-30 | L196: 欣荣村 | M196: 东庄片杰四欧蜈蚣塘5亩水塘清淤护砌，取淤1.2米4000立方米，护砌600平方米。 | N196: 15 | O196: 3 | P196: 12 | Q196: 1 | R196: 56 | S196: 203 | U196: 4 | V196: 15 | W196: 东庄片杰四欧蜈蚣塘5亩水塘清淤护砌，取淤1.2米4000立方米，护砌600平方米；改善下游水田灌溉条件，受益水田60亩，预计亩增产100斤；受益群众56户203人，其中脱贫户4户15人。 | X196: 群众水稻种植受益，受益面积60亩，预计亩增产100斤。
A197: 192 | B197: 乡村建设行动 | C197: 农村基础设施 | D197: 农村道路建设（通村、通户路） | E197: 荣家湾街道 | F197: 兴园村 | G197: 兴园村跃进片陈塘堰机耕桥重建 | H197: 改建 | I197: 兴园村 | J197: 2025-03-01 | K197: 2025-04-30 | L197: 兴园村 | M197: 跃进片陈塘堰机耕桥旧桥拆除重建，桥长8米，宽3.5米。 | N197: 6 | O197: 4 | P197: 2 | Q197: 1 | R197: 35 | S197: 120 | U197: 2 | V197: 6 | W197: 跃进片陈塘堰机耕桥旧桥拆除重建，桥长8米，宽3.5米,解决群众农业机械通行问题，方便耕种；受益群众35户120人，其中脱贫户2户6人。 | X197: 改善40亩土地种植条件，解决农业机械通行问题，群众水稻种植长期受益。
A198: 193 | B198: 产业发展 | C198: 配套基础设施项目 | D198: 小型农田水利设施建设 | E198: 荣家湾街道 | F198: 友爱村 | G198: 友爱村金沙堰桥梁建设 | H198: 改建 | I198: 友爱片胡再如屋场 | J198: 202501 | K198: 202502 | L198: 友爱村 | M198: 友爱片胡再如屋场金沙堰桥涵洞重建，全长12米，宽3米。 | N198: 10 | O198: 2 | P198: 8 | Q198: 1 | R198: 92 | S198: 306 | U198: 5 | V198: 14 | W198: 友爱片胡再如屋场金沙堰桥涵重建，全长12米，宽3米；受益水田面积200亩，解决村民耕种困难；受益群众92户306人，其中脱贫户5户14人。 | X198: 群众水稻种植受益，受益面积200亩，方便机械进出，预计亩增产100斤。
A199: 194 | B199: 产业发展 | C199: 生产项目 | D199: 种植业基地 | E199: 荣家湾街道 | F199: 岳武村 | G199: 岳武村金盆柚基地 | H199: 续建 | I199: 岳武村 | J199: 2025-01-01 | K199: 2025-12-31 | L199: 岳武村 | M199: 岳武村金盆柚种植基地续建，村集体流转120亩林地进行金盆柚种植后，树苗补苗、施肥、除草、打药以及浇灌等后期管理。 | N199: 32.5 | O199: 32 | P199: 0.5 | Q199: 1 | R199: 100 | S199: 405 | T199: 1 | U199: 28 | V199: 76 | W199: 岳武村金盆柚种植基地续建，村集体流转120亩林地进行金盆柚种植后，树苗补苗、施肥、除草、打药以及浇灌等后期管理。受益群众100户405人，其中脱贫户28户76人。预计挂果后每年增加村集体经济收入20万。 | X199: 带动群众发展特色种植业，吸纳群众务工务劳。
A200: 195 | B200: 产业发展 | C200: 生产项目 | D200: 种植业基地 | E200: 荣家湾街道 | F200: 公诚村 | G200: 公诚村金盆柚基地 | H200: 新建 | I200: 公诚村 | J200: 2025-03-01 | K200: 2025-12-31 | L200: 公诚村 | M200: 入股公诚村金盆柚基地项目，基地共种植金盆柚670亩，由公诚村出资60万元，采取入股模式，收益为固定分红，分红期自2028年开始至2037年结束共10年，每年固定分红8万元，分红收益增加村集体经济收入。 | N200: 500 | O200: 60 | P200: 440 | Q200: 1 | R200: 60 | S200: 308 | U200: 4 | V200: 15 | W200: 入股公诚村金盆柚基地项目，流转土地670亩进行水肥一体化建设，发展金盆柚产业；收益为固定分红，分红期自2028年开始至2037年结束共10年，每年固定分红8万元，分红收益增加村集体经济收入。受益群众60户308人，其中脱贫户4户15人。 | X200: 土地流转增加群众租金收入，带动群众投工投劳增加工资收入，产业基地收入增加村集体经济收入。
... 284 more rows
